{"text_format":"1","workbook":"xlsx","n_sheets":2,"sheets":["Change Request Form","Notes"],"not_rendered":{"charts":0,"images":1,"macros":1,"external_links":0,"defined_names":5,"comments":0,"pivot_tables":0},"unopened":[],"bounds":{"document_bytes":16777216,"sheet_cells":100000,"rows_first":2000,"rows_last":500,"rows_between":2000,"halvings":0,"cell_chars":16384,"cell_head_chars":4096},"cells_cut":0,"cells_raw":0,"read":"whole","date_system":"1900"}

{"sheet":"Change Request Form","index":0,"n_rows":45,"n_cols":255,"rows_kept":45,"cut":false,"hidden":false,"merged":[[6,7,7,8],[5,7,5,8],[39,0,39,8],[27,3,27,6],[33,3,33,6],[32,3,32,6],[31,3,31,6],[30,3,30,6],[11,3,11,6]]}
["AAAAABAAABB%",null,null,null,null,null,null,null,null,null,null,null,null,null,null,null,null,null,null,null,null,null,null,null,null,null,null,null,null,null,null,null,null,null,null,null,null,null,null,null,null,null,null,null,null,null,null,null,null,null,null,null,null,null,null,null,null,null,null,null,null,null,null,null,null,null,null,null,null,null,null,null,null,null,null,null,null,null,null,null,null,null,null,null,null,null,null,null,null,null,null,null,null,null,null,null,null,null,null,null,null,null,null,null,null,null,null,null,null,null,null,null,null,null,null,null,null,null,null,null,null,null,null,null,null,null,null,null,null,null,null,null,null,null,null,null,null,null,null,null,null,null,null,null,null,null,null,null,null,null,null,null,null,null,null,null,null,null,null,null,null,null,null,null,null,null,null,null,null,null,null,null,null,null,null,null,null,null,null,null,null,null,null,null,null,null,null,null,null,null,null,null,null,null,null,null,null,null,null,null,null,null,null,null,null,null,null,null,null,null,null,null,null,null,null,null,null,null,null,null,null,null,null,null,null,null,null,null,null,null,null,null,null,null,null,null,null,null,null,null,null,null,null,null,null,null,null,null,null,null,null,null,null,null,"2013 to 2014"]
[null,null,null,null,null,null,null,null,null,null,null,null,null,null,null,null,null,null,null,null,null,null,null,null,null,null,null,null,null,null,null,null,null,null,null,null,null,null,null,null,null,null,null,null,null,null,null,null,null,null,null,null,null,null,null,null,null,null,null,null,null,null,null,null,null,null,null,null,null,null,null,null,null,null,null,null,null,null,null,null,null,null,null,null,null,null,null,null,null,null,null,null,null,null,null,null,null,null,null,null,null,null,null,null,null,null,null,null,null,null,null,null,null,null,null,null,null,null,null,null,null,null,null,null,null,null,null,null,null,null,null,null,null,null,null,null,null,null,null,null,null,null,null,null,null,null,null,null,null,null,null,null,null,null,null,null,null,null,null,null,null,null,null,null,null,null,null,null,null,null,null,null,null,null,null,null,null,null,null,null,null,null,null,null,null,null,null,null,null,null,null,null,null,null,null,null,null,null,null,null,null,null,null,null,null,null,null,null,null,null,null,null,null,null,null,null,null,null,null,null,null,null,null,null,null,null,null,null,null,null,null,null,null,null,null,null,null,null,null,null,null,null,null,null,null,null,null,null,null,null,null,null,null,null,"2014 to 2015"]
[]
[]
[]
[null,null,null,null,null,null,null,"Completion Status"]
["Apprenticeship Grant for Employers facility: change request form for 2015 to 2016 financial year",null,null,null,null,null,null,{"$f":"IF(Notes!$N$36<>11,\"INCOMPLETE\",\"COMPLETE\")","v":"INCOMPLETE"}]
[]
["Please read the notes page before completing this form. Please only complete the cells in yellow."]
["All cells in yellow must be completed for your request to be processed."]
[]
[null,null,"Provider Name",null,null,null,null,null,{"$f":"IF(D12<>\"\",\"ü\",\"û\")","v":"û"}]
[]
[null,null,"UK Provider Registration Number (UKPRN)",{"$f":"IFERROR(VLOOKUP($D12,Notes!$G$27:$H$1048576,2,FALSE),\"\")","v":""}]
[]
[]
["AGE facility requested change for 2015 to 2016 financial year - apprentice starts between 1 January 2015 to 31 December 2015"]
["Please use the dropdown boxes to indicate which age range you are requesting a change to and enter the amounts in the yellow boxes."]
["All boxes in yellow must be completed. "]
[null,null,"Please tell us what you want","Please select:",null,"Please tell us the TOTAL facility you require"]
[null,null,"for 16- to 18-year-olds",null,null,null,{"$f":"IFERROR(VLOOKUP($D21,Notes!$J$30:$M$38,2,FALSE),0)","v":0},{"$f":"IF(D21=\"No change to existing facility\",1,IF(D21=\"No current facility\",1,IF(D21=\"\",1,0)))","v":1},{"$f":"IF(AND(J21=1,F21<1500),\"û\",IF(D21<>\"\",\"ü\",\"û\"))","v":"û"},{"$f":"IF(D21=\"Request a reduced facility\",1,IF(D21=\"Increased facility\",1,IF(D21=\"Request a facility for the first time\",1,0)))","v":0}]
[null,null,"for 19- to 24-year-olds",null,null,null,{"$f":"IFERROR(VLOOKUP($D22,Notes!$J$30:$M$38,2,FALSE),0)","v":0},{"$f":"IF(D22=\"No change to existing facility\",1,IF(D22=\"No current facility\",1,IF(D22=\"\",1,0)))","v":1},{"$f":"IF(AND(J22=1,F22<1500),\"û\",IF(D22<>\"\",\"ü\",\"û\"))","v":"û"},{"$f":"IF(D22=\"Request a reduced facility\",1,IF(D22=\"Increased facility\",1,IF(D22=\"Request a facility for the first time\",1,0)))","v":0}]
[]
[null,null,null,"Total",null,{"$f":"SUMIF($H$21:$H$22,0,$F$21:$F$22)","v":0}]
[]
["Please note that the Agency cannot guarantee that proposals will be accepted."]
[]
[null,null,"Reason for Change Request",null,null,null,null,null,{"$f":"IF(D28<>\"\",\"ü\",\"û\")","v":"û"}]
[]
["Request completed by"]
[null,null,"Name",null,null,null,null,null,{"$f":"IF(D31<>\"\",\"ü\",\"û\")","v":"û"}]
[null,null,"Position in Organisation",null,null,null,null,null,"û"]
[null,null,"Email Address",null,null,null,null,null,"û"]
[null,null,"Date of Request",null,null,null,null,null,"û"]
[]
[null,null,"Please tick to confirm that you have the authority to act on behalf of the applicant organisation named in this form.",null,null,null,null,null,{"$f":"IF(Notes!$N$38=TRUE,\"ü\",\"û\")","v":"û"}]
[]
["Please note that the Agency will copy confirmation of the request to the Head of the Organisation."]
[]
["Once completed, please email this form to 'ProviderAGEFacilityManagement@sfa.bis.gov.uk' using 'Apprenticeship Grant for Employers - Change Request 2015-16 FY' as the subject line."]
[]
["Alternatively, click this button to create an email automatically:"]
[]
[]
[null,null,null,"24plusallfacilityrequests@skillsfundingagency.bis.gov.uk"]

{"sheet":"Notes","index":1,"n_rows":1046,"n_cols":14,"rows_kept":1046,"cut":false,"hidden":false,"merged":[]}
["General information"]
["Macro security","The AGE Facility Change Request Form contains a number of macros within it.  When opening the spreadsheet you must enable macros. To do this left click on the security warning options and enable the content.  You will need to do this each time you open the form."]
[]
["Field","Description"]
["Completion Status","This box stays INCOMPLETE and coloured red until all the yellow boxes are complete.  Once all the yellow boxes are complete, it changes to COMPLETE coloured green.  The macro to send the email automatically will not work unless the Completion Status is COMPLETE."]
["Provider Name","Pick your provider name from the drop down box.  If your provider name does not appear (this should only happen if you are a new provider), please enter the trading name of your organisation in full."]
["UKPRN","The UK Provider Registration Number as it appears on the UK Register of Learning Providers (UKRLP) will automatically populate once you select your provider name. If you have manually entered your provider name you will also need to manually enter the UKPRN."]
["Please tell us what you want for 16-to 18-year-olds/for 19-to 24-year-olds","For each age group, please indicate whether you want to (a) increase your facility; (b) request a facility for the first time (ie, you do not currently have a facility); (c) reduce your facility (reducing it to zero will remove it altogether).  If none of these options apply, then select either (d) no change or (e) no current facility."]
["Please tell us the TOTAL facility you require","Please enter the TOTAL facility you are requesting for each age group.  For example, if your current facility is £45,000 and you are requesting £15,000 growth funding, enter £60,000.  Your request must be in multiples of £1,500 (as each AGE grant is £1,500 per learner).  [This section will be blank if you have indicated no change or no current facility in the previous section.]"]
["Reason for change request","Please select an option from the drop-down menu."]
["Request completed by","Please ensure you complete all four boxes (name, position, email address date of request) and TICK THE BOX to confirm that you have authority to request additional funding for your organisation."]
["Email the completed form button","If you enabled the macros, this button will create a copy of your request form and create an email to send it to.  If your email does not allow macros, you can simply send this form as an attachment to the email address (ProviderAGEFacilityManagement@sfa.bis.gov.uk).  Please put 'Apprenticeship Grant for Employers - Change Request 2015-16 FY' in the subject line of your email."]
[]
[]
[]
[]
[]
[]
[]
[]
[]
[]
[]
[null,null,null,null,null,null,null,null,null,"To meet potential demand based on discussions with employers"]
[null,null,null,null,null,null,null,null,null,"Current AGE facility fully committed",null,null,"Completion Flags"]
[null,null,null,null,null,null,"Provider Name","UKPRN",null,"To request a reduction to the facility",null,null,"ProvName",{"$f":"IF('Change Request Form'!D12=\"\",0,1)","v":0}]
[null,null,null,null,null,null,"1LIFE MANAGEMENT SOLUTIONS LIMITED",10003876,null,"To request removal of the facility",null,null,"Want16-18",{"$f":"IF('Change Request Form'!D21=\"\",0,1)","v":0}]
[null,null,null,null,null,null,"5 E LTD.",10000020,null,"Provider requesting AGE facility for the first time",null,null,"Want19-24",{"$f":"IF('Change Request Form'!D22=\"\",0,1)","v":0}]
[null,null,null,null,null,null,"A4E LTD",10000115,null,null,null,null,"Amount16-18",{"$f":"IF('Change Request Form'!H21=1,1,IF(AND('Change Request Form'!H21=0,'Change Request Form'!F21=\"\"),0,1))","v":1}]
[null,null,null,null,null,null,"ABA TRAINING LIMITED",10010933,null,"Increased facility",1,null,"Amount19-24",{"$f":"IF('Change Request Form'!H22=1,1,IF(AND('Change Request Form'!H22=0,'Change Request Form'!F22=\"\"),0,1))","v":1}]
[null,null,null,null,null,null,"ABACUS TRAINING GROUP",10035281,null,"Request a facility for the first time",1,null,"Reason",{"$f":"IF('Change Request Form'!D28=\"\",0,1)","v":0}]
[null,null,null,null,null,null,"ABILITY PROFESSIONAL TRAINING LIMITED",10000054,null,"Request a reduced facility",1,null,"Name",{"$f":"IF('Change Request Form'!D31=\"\",0,1)","v":0}]
[null,null,null,null,null,null,"ABINGDON AND WITNEY COLLEGE",10000055,null,"No change to existing facility",0,null,"Position",{"$f":"IF('Change Request Form'!D32=\"\",0,1)","v":0}]
[null,null,null,null,null,null,"ABIS RESOURCES LIMITED",10019646,null,"No current facility",0,null,"Email Address",{"$f":"IF('Change Request Form'!D33=\"\",0,1)","v":0}]
[null,null,null,null,null,null,"ACACIA TRAINING AND DEVELOPMENT LTD",10000060,null,null,null,null,"Date of Request",{"$f":"IF('Change Request Form'!D34=\"\",0,1)","v":0}]
[null,null,null,null,null,null,"ACACIA TRAINING LIMITED",10000061,null,null,null,null,null,{"$f":"SUM(N26:N35)+N39","v":2}]
[null,null,null,null,null,null,"ACADEMIES ENTERPRISE TRUST",10033736,null,null,null,null,null,{"$f":"COUNTA(N26:N35)","v":10}]
[null,null,null,null,null,null,"ACADEMY EDUCATION LIMITED",10000191,null,null,null,null,"Radio button output",false]
[null,null,null,null,null,null,"ACADEMY TRAINING GROUP LIMITED",10024597,null,null,null,null,"Check box confirmed",{"$f":"IF(N38=TRUE,1,0)","v":0}]
[null,null,null,null,null,null,"ACADEMY TRANSFORMATION TRUST",10039859]
[null,null,null,null,null,null,"ACCESS TO MUSIC LIMITED",10000080]
[null,null,null,null,null,null,"ACCESS TRAINING (EAST MIDLANDS) LTD",10010584]
[null,null,null,null,null,null,"ACCESS TRAINING LIMITED",10009059]
[null,null,null,null,null,null,"ACCRINGTON AND ROSSENDALE COLLEGE",10000093]
[null,null,null,null,null,null,"ACHIEVE THROUGH LEARNING LIMITED",10019431]
[null,null,null,null,null,null,"ACHIEVEMENT TRAINING LIMITED",10000099]
[null,null,null,null,null,null,"ACORN TRAINING LTD",10023489]
[null,null,null,null,null,null,"ACTIV8LEARNING",10007706]
[null,null,null,null,null,null,"ACTIVATE LEARNING",10004927]
[null,null,null,null,null,null,"AGE UK TRADING LIMITED",10032745]
[null,null,null,null,null,null,"AGILISYS LIMITED",10036303]
[null,null,null,null,null,null,"ALDER TRAINING LIMITED",10000201]
[null,null,null,null,null,null,"ALL TRADES TRAINING LIMITED",10027693]
[null,null,null,null,null,null,"ALLIANCE LEARNING",10000238]
[null,null,null,null,null,null,"ALPHA BUILDING SERVICES ENGINEERING LTD",10022311]
[null,null,null,null,null,null,"ALPHA CARE AGENCY LTD",10022070]
[null,null,null,null,null,null,"ALT VALLEY COMMUNITY TRUST LIMITED",10001777]
[null,null,null,null,null,null,"ALTON COLLEGE",10000256]
[null,null,null,null,null,null,"AMERSHAM & WYCOMBE COLLEGE",10000275]
[null,null,null,null,null,null,"ANDERSON STOCKLEY ACCREDITED TRAINING LTD",10023918]
[null,null,null,null,null,null,"ANDREW COLLINGE TRAINING LIMITED",10000285]
[null,null,null,null,null,null,"ANNE CLARKE ASSOCIATES LIMITED",10022210]
[null,null,null,null,null,null,"APPLE CONSTRUCTION TRAINING LIMITED",10030987]
[null,null,null,null,null,null,"APPRENTICE FUNDING ASSISTANT LIMITED",10030249]
[null,null,null,null,null,null,"APPRENTICESHIPS & TRAINING SERVICES CONSORTIUM LIMITED",10032404]
[null,null,null,null,null,null,"APPRIS CHARITY LIMITED",10000848]
[null,null,null,null,null,null,"AQT LIMITED",10024244]
[null,null,null,null,null,null,"AQUINAS COLLEGE",10000330]
[null,null,null,null,null,null,"ARTS UNIVERSITY BOURNEMOUTH, THE",10000385]
[null,null,null,null,null,null,"ASHTON SIXTH FORM COLLEGE",10000409]
[null,null,null,null,null,null,"ASKHAM BRYAN COLLEGE",10000415]
[null,null,null,null,null,null,"ASPIRATION TRAINING LIMITED",10000421]
[null,null,null,null,null,null,"ASPIRE ACHIEVE ADVANCE LIMITED",10031241]
[null,null,null,null,null,null,"ASPIRE TRAINING TEAM LIMITED",10006942]
[null,null,null,null,null,null,"ASSET TRAINING & CONSULTANCY LIMITED",10000427]
[null,null,null,null,null,null,"ASSOCIATED TRAINING SOLUTIONS LIMITED",10037337]
[null,null,null,null,null,null,"ASTRAL TRAINING LTD",10026028]
[null,null,null,null,null,null,"ASTUTE MINDS LTD",10020307]
[null,null,null,null,null,null,"ATG TRAINING",10000476]
[null,null,null,null,null,null,"AURELIA TRAINING LIMITED",10000452]
[null,null,null,null,null,null,"AVANT PARTNERSHIP LIMITED",10022513]
[null,null,null,null,null,null,"AVANTA ENTERPRISE LIMITED",10036431]
[null,null,null,null,null,null,"AWAAZ ENTERPRISES LIMITED",10018436]
[null,null,null,null,null,null,"AWE PLC",10008081]
[null,null,null,null,null,null,"AXIA SOLUTIONS LIMITED",10000470]
[null,null,null,null,null,null,"AYLESBURY COLLEGE",10000473]
[null,null,null,null,null,null,"B L TRAINING LIMITED",10000486]
[null,null,null,null,null,null,"B2B ENGAGE LIMITED",10029186]
[null,null,null,null,null,null,"BABCOCK SKILLS DEVELOPMENT AND TRAINING LIMITED",10037348]
[null,null,null,null,null,null,"BABCOCK TRAINING LIMITED",10003161]
[null,null,null,null,null,null,"BABINGTON BUSINESS COLLEGE LIMITED",10000494]
[null,null,null,null,null,null,"BAE SYSTEMS PLC",10000501]
[null,null,null,null,null,null,"BALTIC TRAINING SERVICES LIMITED",10019026]
[null,null,null,null,null,null,"BARCHESTER HEALTHCARE LIMITED",10000524]
[null,null,null,null,null,null,"BARFORD EDUCATION AND TRAINING (NORTH EAST) LIMITED",10000525]
[null,null,null,null,null,null,"BARKING & DAGENHAM LONDON BOROUGH COUNCIL",10000143]
[null,null,null,null,null,null,"BARKING AND DAGENHAM COLLEGE",10000528]
[null,null,null,null,null,null,"BARNARDO'S",10000532]
[null,null,null,null,null,null,"BARNET & SOUTHGATE COLLEGE",10000533]
[null,null,null,null,null,null,"BARNFIELD COLLEGE",10000534]
[null,null,null,null,null,null,"BARNSLEY COLLEGE",10000536]
[null,null,null,null,null,null,"BARNSLEY METROPOLITAN BOROUGH COUNCIL",10000538]
[null,null,null,null,null,null,"BARROW-IN-FURNESS SIXTH FORM COLLEGE",10000546]
[null,null,null,null,null,null,"BARTON PEVERIL SIXTH FORM COLLEGE",10000552]
[null,null,null,null,null,null,"BASINGSTOKE COLLEGE OF TECHNOLOGY",10000560]
[null,null,null,null,null,null,"BASINGSTOKE YOUTH ACTION TRUST LIMITED",10000561]
[null,null,null,null,null,null,"BCTG LIMITED",10006600]
[null,null,null,null,null,null,"BE TOTALLY YOU",10019227]
[null,null,null,null,null,null,"BE WISER INSURANCE SERVICES LTD ",10045359]
[null,null,null,null,null,null,"BEACON EDUCATION PARTNERSHIP LIMITED",10033608]
[null,null,null,null,null,null,"BECKETT CORPORATION LIMITED",10020123]
[null,null,null,null,null,null,"BEDFORD COLLEGE",10000610]
[null,null,null,null,null,null,"BELLIS TRAINING LIMITED",10000631]
[null,null,null,null,null,null,"BERKSHIRE COLLEGE OF AGRICULTURE, THE (BCA)",10000654]
[null,null,null,null,null,null,"BESTLAND SOLUTIONS LIMITED",10018344]
[null,null,null,null,null,null,"BEXHILL COLLEGE",10000670]
[null,null,null,null,null,null,"BEXLEY COLLEGE",10000671]
[null,null,null,null,null,null,"BEXLEY LONDON BOROUGH COUNCIL",10000146]
[null,null,null,null,null,null,"BEXLEY YOUTH TRAINING GROUP",10000673]
[null,null,null,null,null,null,"BHS LIMITED",10019980]
[null,null,null,null,null,null,"BICTON COLLEGE",10000683]
[null,null,null,null,null,null,"BIMM LIMITED",10037544]
[null,null,null,null,null,null,"BIRKENHEAD SIXTH FORM COLLEGE",10000702]
[null,null,null,null,null,null,"BIRMINGHAM CITY COUNCIL",10000703]
[null,null,null,null,null,null,"BIRMINGHAM ELECTRICAL TRAINING LTD",10000715]
[null,null,null,null,null,null,"BIRMINGHAM METROPOLITAN COLLEGE",10006442]
[null,null,null,null,null,null,"BISHOP AUCKLAND COLLEGE",10000720]
[null,null,null,null,null,null,"BISHOP BURTON COLLEGE",10000721]
[null,null,null,null,null,null,"BLACKBURN COLLEGE",10000747]
[null,null,null,null,null,null,"BLACKBURN WITH DARWEN UNITARY AUTHORITY",10000748]
[null,null,null,null,null,null,"BLACKPOOL AND THE FYLDE COLLEGE",10000754]
[null,null,null,null,null,null,"BLACKPOOL UNITARY AUTHORITY",10000755]
[null,null,null,null,null,null,"BLUE TRAINING (U.K.) LIMITED",10013208]
[null,null,null,null,null,null,"BMC (BROOKSBY MELTON COLLEGE)",10000952]
[null,null,null,null,null,null,"BOCK CONSULTANCY & PERSONNEL DEVELOPMENT LIMITED",10025267]
[null,null,null,null,null,null,"BOLTON COLLEGE",10000794]
[null,null,null,null,null,null,"BOLTON METROPOLITAN BOROUGH COUNCIL",10000795]
[null,null,null,null,null,null,"BOOTS OPTICIANS PROFESSIONAL SERVICES LIMITED",10028930]
[null,null,null,null,null,null,"BOSCH AUTOMOTIVE SERVICE SOLUTIONS LTD",10042884]
[null,null,null,null,null,null,"BOSTON COLLEGE",10000812]
[null,null,null,null,null,null,"BOURNEMOUTH AND POOLE COLLEGE, THE",10000820]
[null,null,null,null,null,null,"BOURNVILLE COLLEGE",10000825]
[null,null,null,null,null,null,"BOWLING COLLEGE",10009975]
[null,null,null,null,null,null,"BPP HOLDINGS LIMITED",10000831]
[null,null,null,null,null,null,"BRACKNELL AND WOKINGHAM COLLEGE",10000833]
[null,null,null,null,null,null,"BRACKNELL FOREST BOROUGH COUNCIL",10000834]
[null,null,null,null,null,null,"BRADFORD CITY COUNCIL",10000850]
[null,null,null,null,null,null,"BRADFORD COLLEGE",10000840]
[null,null,null,null,null,null,"BRENIKOV ASSOCIATES LIMITED",10009005]
[null,null,null,null,null,null,"BRENT LONDON BOROUGH COUNCIL",10000863]
[null,null,null,null,null,null,"BRIDGWATER COLLEGE",10000878]
[null,null,null,null,null,null,"BRIGHT HORIZONS FAMILY SOLUTIONS LIMITED",10003609]
[null,null,null,null,null,null,"BRIGHTON & HOVE CITY COUNCIL",10000883]
[null,null,null,null,null,null,"BRIGHTON HOVE AND SUSSEX SIXTH FORM COLLEGE",10000887]
[null,null,null,null,null,null,"BRINSWORTH TRAINING LIMITED",10022320]
[null,null,null,null,null,null,"BRISTOL CITY COUNCIL",10000896]
[null,null,null,null,null,null,"BRITISH ARMY",10033440]
[null,null,null,null,null,null,"BRITISH GAS SERVICES LIMITED",10000915]
[null,null,null,null,null,null,"BRITISH PRINTING INDUSTRIES FEDERATION LTD",10000929]
[null,null,null,null,null,null,"BRITISH TELECOMMUNICATIONS PUBLIC LIMITED COMPANY",10027662]
[null,null,null,null,null,null,"BROADLAND DISTRICT COUNCIL",10000941]
[null,null,null,null,null,null,"BROCKENHURST COLLEGE",10000944]
[null,null,null,null,null,null,"BROMLEY COLLEGE OF FURTHER AND HIGHER EDUCATION",10000948]
[null,null,null,null,null,null,"BROMLEY LONDON BOROUGH COUNCIL",10003987]
[null,null,null,null,null,null,"BROOKLANDS COLLEGE",10000950]
[null,null,null,null,null,null,"BROOKS & KIRK LIMITED",10039535]
[null,null,null,null,null,null,"B-SKILL LIMITED",10000488]
[null,null,null,null,null,null,"BUCKINGHAMSHIRE COUNTY COUNCIL",10000976]
[null,null,null,null,null,null,"BUCKINGHAMSHIRE NEW UNIVERSITY",10000975]
[null,null,null,null,null,null,"BUILDING CRAFTS COLLEGE",10009063]
[null,null,null,null,null,null,"BUILDING ENGINEERING SERVICES TRAINING LIMITED",10000984]
[null,null,null,null,null,null,"BURNLEY COLLEGE",10001000]
[null,null,null,null,null,null,"BURTON AND SOUTH DERBYSHIRE COLLEGE",10001004]
[null,null,null,null,null,null,"BURY COLLEGE",10001005]
[null,null,null,null,null,null,"BURY METROPOLITAN BOROUGH COUNCIL",10001008]
[null,null,null,null,null,null,"BUSINESS IMPACT UK LIMITED",10023403]
[null,null,null,null,null,null,"BUSINESS MANAGEMENT RESOURCES (UK) LTD",10001055]
[null,null,null,null,null,null,"BUSY BEES NURSERIES LIMITED",10030637]
[null,null,null,null,null,null,"CABLECOM TRAINING LIMITED",10001078]
[null,null,null,null,null,null,"CALDERDALE COLLEGE",10001093]
[null,null,null,null,null,null,"CALDERDALE METROPOLITAN BOROUGH COUNCIL",10001094]
[null,null,null,null,null,null,"CAMBRIDGE REGIONAL COLLEGE",10001116]
[null,null,null,null,null,null,"CAMBRIDGESHIRE COUNTY COUNCIL",10001123]
[null,null,null,null,null,null,"CAMDEN LONDON BOROUGH COUNCIL",10003988]
[null,null,null,null,null,null,"CAMPBELL PAGE UK LIMITED",10032266]
[null,null,null,null,null,null,"CANTERBURY COLLEGE",10001144]
[null,null,null,null,null,null,"CAPEL MANOR COLLEGE",10001148]
[null,null,null,null,null,null,"CAPITA PLC",10001149]
[null,null,null,null,null,null,"CAPITAL ENGINEERING GROUP HOLDINGS LTD",10022461]
[null,null,null,null,null,null,"CARDINAL NEWMAN COLLEGE",10001165]
[null,null,null,null,null,null,"CARE TRAINING EAST MIDLANDS LIMITED",10001174]
[null,null,null,null,null,null,"CAREER DEVELOPMENT CENTER LIMITED",10001177]
[null,null,null,null,null,null,"CARILLION CONSTRUCTION LIMITED",10001193]
[null,null,null,null,null,null,"CARLISLE COLLEGE",10001196]
[null,null,null,null,null,null,"CARMEL COLLEGE",10001201]
[null,null,null,null,null,null,"CARSHALTON COLLEGE",10001207]
[null,null,null,null,null,null,"CATCH 22 CHARITY LIMITED",10025727]
[null,null,null,null,null,null,"CENTRAL BEDFORDSHIRE COLLEGE",10002061]
[null,null,null,null,null,null,"CENTRAL BEDFORDSHIRE COUNCIL",10024292]
[null,null,null,null,null,null,"CENTRAL COLLEGE NOTTINGHAM",10005991]
[null,null,null,null,null,null,"CENTRAL SUSSEX COLLEGE",10001744]
[null,null,null,null,null,null,"CENTRAL TRAINING ACADEMY LIMITED",10001259]
[null,null,null,null,null,null,"CHAMBER TRAINING (HUMBER) LIMITED",10001310]
[null,null,null,null,null,null,"CHAPMAN BENNETT ASSOCIATES LIMITED",10024603]
[null,null,null,null,null,null,"CHARNWOOD TRAINING GROUP LIMITED",10001326]
[null,null,null,null,null,null,"CHEADLE AND MARPLE SIXTH FORM COLLEGE",10001346]
[null,null,null,null,null,null,"CHELMSFORD COLLEGE",10001353]
[null,null,null,null,null,null,"CHESHIRE EAST COUNCIL",10024293]
[null,null,null,null,null,null,"CHESHIRE WEST AND CHESTER COUNCIL",10024294]
[null,null,null,null,null,null,"CHESTERFIELD BUSINESS COLLEGE LIMITED",10020827]
[null,null,null,null,null,null,"CHESTERFIELD COLLEGE",10001378]
[null,null,null,null,null,null,"CHEYNE'S (MANAGEMENT) LIMITED",10008159]
[null,null,null,null,null,null,"CHICHESTER COLLEGE",10007817]
[null,null,null,null,null,null,"CHILDREN'S LINKS",10001392]
[null,null,null,null,null,null,"CHILTERN TRAINING LIMITED",10001394]
[null,null,null,null,null,null,"CIRENCESTER COLLEGE",10001446]
[null,null,null,null,null,null,"CITB",10001436]
[null,null,null,null,null,null,"CITROEN U.K. LIMITED",10019087]
[null,null,null,null,null,null,"CITY AND ISLINGTON COLLEGE",10001452]
[null,null,null,null,null,null,"CITY COLLEGE BRIGHTON AND HOVE",10001457]
[null,null,null,null,null,null,"CITY COLLEGE COVENTRY",10001458]
[null,null,null,null,null,null,"CITY COLLEGE NORWICH",10004772]
[null,null,null,null,null,null,"CITY COLLEGE NOTTINGHAM",10009263]
[null,null,null,null,null,null,"CITY COLLEGE PLYMOUTH",10005128]
[null,null,null,null,null,null,"CITY GATEWAY",10019383]
[null,null,null,null,null,null,"CITY LINK LIMITED",10042153]
[null,null,null,null,null,null,"CITY OF BATH COLLEGE",10001465]
[null,null,null,null,null,null,"CITY OF BRISTOL COLLEGE",10001467]
[null,null,null,null,null,null,"CITY OF LONDON COLLEGE (CENTRE FOR ADVANCED STUDIES LIMITED)",10018361]
[null,null,null,null,null,null,"CITY OF WESTMINSTER COLLEGE",10001476]
[null,null,null,null,null,null,"CITY OF WOLVERHAMPTON COLLEGE",10007578]
[null,null,null,null,null,null,"CITY OF YORK COUNCIL",10001477]
[null,null,null,null,null,null,"CJI SOLUTIONS LIMITED",10010586]
[null,null,null,null,null,null,"CLARKSON EVANS TRAINING LIMITED",10025390]
[null,null,null,null,null,null,"CLAVERHAM COMMUNITY COLLEGE",10001492]
[null,null,null,null,null,null,"CLEVELAND COLLEGE OF ART AND DESIGN",10001503]
[null,null,null,null,null,null,"CLEVELAND YOUTH ASSOCIATION",10005775]
[null,null,null,null,null,null,"COLCHESTER INSTITUTE",10001535]
[null,null,null,null,null,null,"COLLEGE OF HARINGEY, ENFIELD AND NORTH-EAST LONDON, THE",10001548]
[null,null,null,null,null,null,"COLLEGE OF NORTH WEST LONDON, THE",10001549]
[null,null,null,null,null,null,"COMMON COUNCIL OF THE CITY OF LONDON",10008915]
[null,null,null,null,null,null,"COMMUNITY SKILLS DEVELOPMENT AGENCY LIMITED",10019919]
[null,null,null,null,null,null,"COMMUNITY TRAINING SERVICES LIMITED",10001602]
[null,null,null,null,null,null,"COMPASS GROUP, UK AND IRELAND LIMITED",10024317]
[null,null,null,null,null,null,"CONSORTIA TRAINING LIMITED",10033482]
[null,null,null,null,null,null,"CONSORTIUM OF VOCATIONAL AND EDUCATIONAL TRAINERS LIMITED",10033547]
[null,null,null,null,null,null,"CORNWALL COLLEGE",10001696]
[null,null,null,null,null,null,"COULSDON SIXTH FORM COLLEGE",10001705]
[null,null,null,null,null,null,"COUNCIL OF THE ISLES OF SCILLY",10001710]
[null,null,null,null,null,null,"COUNTY DURHAM COUNCIL",10002064]
[null,null,null,null,null,null,"COVENTRY AND WARWICKSHIRE CHAMBERS OF COMMERCE TRAINING LIMITED",10001309]
[null,null,null,null,null,null,"COVENTRY CITY COUNCIL",10001723]
[null,null,null,null,null,null,"COVENTRY UNIVERSITY",10001726]
[null,null,null,null,null,null,"CRACKERJACK TRAINING LIMITED",10001736]
[null,null,null,null,null,null,"CRAVEN COLLEGE",10001743]
[null,null,null,null,null,null,"CREATIVE PROCESS",10023901]
[null,null,null,null,null,null,"CROYDON COLLEGE",10001778]
[null,null,null,null,null,null,"CROYDON LONDON BOROUGH COUNCIL",10003989]
[null,null,null,null,null,null,"CSM CONSULTING LIMITED",10001786]
[null,null,null,null,null,null,"CUMBRIA COUNTY COUNCIL",10001800]
[null,null,null,null,null,null,"D M T BUSINESS SERVICES LTD",10001997]
[null,null,null,null,null,null,"D MANTLE LIMITED",10031146]
[null,null,null,null,null,null,"DAMAR LIMITED",10001831]
[null,null,null,null,null,null,"DARLINGTON BOROUGH COUNCIL",10001848]
[null,null,null,null,null,null,"DARLINGTON COLLEGE",10001850]
[null,null,null,null,null,null,"DART LIMITED",10001828]
[null,null,null,null,null,null,"DAVIDSON TRAINING UK LIMITED",10001869]
[null,null,null,null,null,null,"DAWN HODGE ASSOCIATES LIMITED",10022117]
[null,null,null,null,null,null,"DE MONTFORT UNIVERSITY",10001883]
[null,null,null,null,null,null,"DEARNE VALLEY COLLEGE",10001897]
[null,null,null,null,null,null,"DEFENCE, MINISTRY OF",10011058]
[null,null,null,null,null,null,"DERBY BUSINESS COLLEGE LIMITED",10005109]
[null,null,null,null,null,null,"DERBY CITY COUNCIL",10001918]
[null,null,null,null,null,null,"DERBY COLLEGE",10001919]
[null,null,null,null,null,null,"DERBYSHIRE AND NOTTINGHAMSHIRE CHAMBER OF COMMERCE AND INDUSTRY",10001927]
[null,null,null,null,null,null,"DERBYSHIRE COUNTY COUNCIL",10001928]
[null,null,null,null,null,null,"DERWEN COLLEGE",10001929]
[null,null,null,null,null,null,"DERWENTSIDE COLLEGE",10001934]
[null,null,null,null,null,null,"DEVON COUNTY COUNCIL",10001951]
[null,null,null,null,null,null,"DHL INTERNATIONAL (UK) LIMITED",10024714]
[null,null,null,null,null,null,"DIDAC LIMITED",10001967]
[null,null,null,null,null,null,"DIMENSIONS TRAINING SOLUTIONS LIMITED",10001971]
[null,null,null,null,null,null,"DONCASTER COLLEGE",10002005]
[null,null,null,null,null,null,"DONCASTER METROPOLITAN BOROUGH COUNCIL",10002008]
[null,null,null,null,null,null,"DONCASTER ROTHERHAM AND DISTRICT MOTOR TRADES GROUP TRAINING ASSOCIATION LIMITED",10002009]
[null,null,null,null,null,null,"DOOSAN BABCOCK LIMITED",10004399]
[null,null,null,null,null,null,"DUDLEY COLLEGE",10007924]
[null,null,null,null,null,null,"DUDLEY METROPOLITAN BOROUGH COUNCIL",10002054]
[null,null,null,null,null,null,"E.ON UK PLC",10023793]
[null,null,null,null,null,null,"EALING LONDON BOROUGH COUNCIL",10009206]
[null,null,null,null,null,null,"EALING, HAMMERSMITH & WEST LONDON COLLEGE",10002094]
[null,null,null,null,null,null,"EAST BERKSHIRE COLLEGE",10002107]
[null,null,null,null,null,null,"EAST DURHAM COLLEGE",10002111]
[null,null,null,null,null,null,"EAST KENT COLLEGE",10006570]
[null,null,null,null,null,null,"EAST LINDSEY INFORMATION TECHNOLOGY CENTRE",10002471]
[null,null,null,null,null,null,"EAST LONDON ADVANCED TECHNOLOGY TRAINING",10002118]
[null,null,null,null,null,null,"EAST NORFOLK SIXTH FORM COLLEGE",10002122]
[null,null,null,null,null,null,"EAST RIDING COLLEGE",10002126]
[null,null,null,null,null,null,"EAST RIDING OF YORKSHIRE COUNCIL",10008919]
[null,null,null,null,null,null,"EAST SURREY COLLEGE",10002130]
[null,null,null,null,null,null,"EAST SUSSEX COUNTY COUNCIL",10002131]
[null,null,null,null,null,null,"EASTLEIGH COLLEGE",10002143]
[null,null,null,null,null,null,"EASTON AND OTLEY COLLEGE",10037344]
[null,null,null,null,null,null,"EAT THAT FROG C.I.C.",10032448]
[null,null,null,null,null,null,"ECONOMIC SOLUTIONS LIMITED",10004177]
[null,null,null,null,null,null,"EDEN COLLEGE",10019914]
[null,null,null,null,null,null,"EDEN TRAINING SOLUTIONS LIMITED",10027766]
[null,null,null,null,null,null,"EDUCATION & YOUTH SERVICES LIMITED",10002186]
[null,null,null,null,null,null,"EDUCATION AND TRAINING SKILLS LTD",10002187]
[null,null,null,null,null,null,"EEF LIMITED",10025384]
[null,null,null,null,null,null,"ELMS ASSOCIATES LTD",10031331]
[null,null,null,null,null,null,"ENABLING DEVELOPMENT OPPORTUNITIES LTD",10023898]
[null,null,null,null,null,null,"ENCOMPASS CONSULTANCY",10032396]
[null,null,null,null,null,null,"ENFIELD LONDON BOROUGH COUNCIL",10002260]
[null,null,null,null,null,null,"ENGLAND AND WALES CRICKET BOARD LIMITED",10013548]
[null,null,null,null,null,null,"ENLIGHTENMENT PARTNERSHIP LIMITED",10032393]
[null,null,null,null,null,null,"EPPING FOREST COLLEGE",10002297]
[null,null,null,null,null,null,"EQL SOLUTIONS LIMITED",10044028]
[null,null,null,null,null,null,"ESCALA TRAINING ACADEMY",10035301]
[null,null,null,null,null,null,"ESG (SKILLS) LIMITED",10034309]
[null,null,null,null,null,null,"ESSEX COUNTY COUNCIL",10002327]
[null,null,null,null,null,null,"E-TRAINING LIMITED",10002078]
[null,null,null,null,null,null,"EXEMPLAS HOLDINGS LIMITED",10002368]
[null,null,null,null,null,null,"EXETER COLLEGE",10002370]
[null,null,null,null,null,null,"EXG LIMITED",10003231]
[null,null,null,null,null,null,"EXPEDIENT TRAINING SERVICES LIMITED",10002375]
[null,null,null,null,null,null,"FALMOUTH UNIVERSITY",10008640]
[null,null,null,null,null,null,"FAREHAM COLLEGE",10007928]
[null,null,null,null,null,null,"FAREPORT TRAINING ORGANISATION LIMITED",10002407]
[null,null,null,null,null,null,"FARNBOROUGH COLLEGE OF TECHNOLOGY",10002412]
[null,null,null,null,null,null,"FASHION RETAIL ACADEMY",10009213]
[null,null,null,null,null,null,"FINMECCANICA UK LIMITED",10020022]
[null,null,null,null,null,null,"FINNING (UK) LTD.",10002463]
[null,null,null,null,null,null,"FIRCROFT COLLEGE OF ADULT EDUCATION",10008641]
[null,null,null,null,null,null,"FIRST CITY TRAINING LIMITED",10010571]
[null,null,null,null,null,null,"FIRST4SKILLS LIMITED",10038911]
[null,null,null,null,null,null,"FNTC TRAINING AND CONSULTANCY LIMITED",10002424]
[null,null,null,null,null,null,"FOCUS TRAINING & DEVELOPMENT LTD",10009687]
[null,null,null,null,null,null,"FOCUS TRAINING (SW) LIMITED",10026590]
[null,null,null,null,null,null,"FOCUS TRAINING LTD",10010401]
[null,null,null,null,null,null,"FORSTER COMMUNITY COLLEGE LIMITED",10001230]
[null,null,null,null,null,null,"FOUR COUNTIES TRAINING LIMITED",10002554]
[null,null,null,null,null,null,"FRANCESCO GROUP (HOLDINGS) LIMITED",10002565]
[null,null,null,null,null,null,"FRANKLIN COLLEGE",10002570]
[null,null,null,null,null,null,"FRIENDS CENTRE",10002578]
[null,null,null,null,null,null,"FURNESS COLLEGE",10002599]
[null,null,null,null,null,null,"FUTURE-WIZE LIMITED",10002613]
[null,null,null,null,null,null,"G B TRAINING (UK) LTD",10002618]
[null,null,null,null,null,null,"G.R. & M.M. BLACKLEDGE PLC",10000789]
[null,null,null,null,null,null,"G4S CARE AND JUSTICE SERVICES (UK) LIMITED",10005728]
[null,null,null,null,null,null,"GAO-SHAN SECURITY LIMITED",10032778]
[null,null,null,null,null,null,"GATESHEAD COLLEGE",10002638]
[null,null,null,null,null,null,"GATESHEAD COUNCIL",10002639]
[null,null,null,null,null,null,"GATEWAY SIXTH FORM COLLEGE",10002642]
[null,null,null,null,null,null,"GENII ENGINEERING & TECHNOLOGY TRAINING LIMITED",10002655]
[null,null,null,null,null,null,"GHQ TRAINING LIMITED",10012171]
[null,null,null,null,null,null,"GI GROUP RECRUITMENT LTD",10039882]
[null,null,null,null,null,null,"GLOUCESTERSHIRE COLLEGE",10002696]
[null,null,null,null,null,null,"GLOUCESTERSHIRE COUNTY COUNCIL",10002697]
[null,null,null,null,null,null,"GLOUCESTERSHIRE ENGINEERING TRAINING LIMITED",10002704]
[null,null,null,null,null,null,"GORDON FRANKS TRAINING LIMITED",10043571]
[null,null,null,null,null,null,"GP STRATEGIES TRAINING LIMITED",10036952]
[null,null,null,null,null,null,"GRANTHAM COLLEGE",10002743]
[null,null,null,null,null,null,"GREAT YARMOUTH COLLEGE",10002755]
[null,null,null,null,null,null,"GREENBANK PROJECT (THE)",10002767]
[null,null,null,null,null,null,"GREENBANK SERVICES LIMITED",10026002]
[null,null,null,null,null,null,"GREENWICH COMMUNITY COLLEGE",10002780]
[null,null,null,null,null,null,"GRIMSBY INSTITUTE OF FURTHER AND HIGHER EDUCATION",10007938]
[null,null,null,null,null,null,"GUILDFORD COLLEGE",10002815]
[null,null,null,null,null,null,"HACKNEY COMMUNITY COLLEGE",10002835]
[null,null,null,null,null,null,"HACKNEY LONDON BOROUGH COUNCIL",10010792]
[null,null,null,null,null,null,"HADDON TRAINING LIMITED",10002841]
[null,null,null,null,null,null,"HADLOW COLLEGE",10002843]
[null,null,null,null,null,null,"HAIR ACADEMY SOUTH WEST LIMITED",10002850]
[null,null,null,null,null,null,"HAIR AND BEAUTY INDUSTRY TRAINING LIMITED",10002834]
[null,null,null,null,null,null,"HALESOWEN COLLEGE",10002852]
[null,null,null,null,null,null,"HALFORDS",10046552]
[null,null,null,null,null,null,"HALTON BOROUGH COUNCIL",10002861]
[null,null,null,null,null,null,"HAMMERSMITH AND FULHAM LONDON BOROUGH COUNCIL",10002868]
[null,null,null,null,null,null,"HAMPSHIRE COUNTY COUNCIL",10002872]
[null,null,null,null,null,null,"HARINGEY LONDON BOROUGH COUNCIL",10002859]
[null,null,null,null,null,null,"HARLOW COLLEGE",10002899]
[null,null,null,null,null,null,"HARROW COLLEGE",10002907]
[null,null,null,null,null,null,"HARROW LONDON BOROUGH COUNCIL",10002910]
[null,null,null,null,null,null,"HARTLEPOOL BOROUGH COUNCIL",10002916]
[null,null,null,null,null,null,"HARTLEPOOL COLLEGE OF FURTHER EDUCATION",10002917]
[null,null,null,null,null,null,"HARTLEPOOL SIXTH FORM COLLEGE",10002918]
[null,null,null,null,null,null,"HARTPURY COLLEGE",10002919]
[null,null,null,null,null,null,"HAVANT COLLEGE",10002929]
[null,null,null,null,null,null,"HAVERING COLLEGE OF FURTHER AND HIGHER EDUCATION",10002935]
[null,null,null,null,null,null,"HAVERING LONDON BOROUGH COUNCIL",10003993]
[null,null,null,null,null,null,"HAWK MANAGEMENT (UK) LIMITED",10009600]
[null,null,null,null,null,null,"HAYS TRAVEL LIMITED",10030120]
[null,null,null,null,null,null,"HEALTH & SAFETY TRAINING LIMITED",10021665]
[null,null,null,null,null,null,"HEALTH AND FITNESS EDUCATION LIMITED ",10022133]
[null,null,null,null,null,null,"HEALTH EDUCATION NORTH EAST",10041332]
[null,null,null,null,null,null,"HEART OF ENGLAND TRAINING LIMITED",10002976]
[null,null,null,null,null,null,"HEART OF WORCESTERSHIRE COLLEGE",10007977]
[null,null,null,null,null,null,"HEATHERCROFT TRAINING SERVICES LIMITED",10002979]
[null,null,null,null,null,null,"HENLEY COLLEGE COVENTRY",10003010]
[null,null,null,null,null,null,"HERBERT OF LIVERPOOL (TRAINING) LTD",10003019]
[null,null,null,null,null,null,"HEREFORD COLLEGE OF ARTS",10003022]
[null,null,null,null,null,null,"HEREFORD SIXTH FORM COLLEGE",10003021]
[null,null,null,null,null,null,"HEREFORDSHIRE AND LUDLOW COLLEGE",10003023]
[null,null,null,null,null,null,"HEREFORDSHIRE COUNCIL",10003025]
[null,null,null,null,null,null,"HEREFORDSHIRE GROUP TRAINING ASSOCIATION LIMITED",10003026]
[null,null,null,null,null,null,"HEREWARD COLLEGE OF FURTHER EDUCATION",10003029]
[null,null,null,null,null,null,"HERTFORD REGIONAL COLLEGE",10003035]
[null,null,null,null,null,null,"HERTFORDSHIRE COUNTY COUNCIL",10003039]
[null,null,null,null,null,null,"HIGHBURY COLLEGE PORTSMOUTH",10007945]
[null,null,null,null,null,null,"HILLCROFT COLLEGE",10003088]
[null,null,null,null,null,null,"HILLINGDON LONDON BOROUGH COUNCIL",10003089]
[null,null,null,null,null,null,"HILLINGDON TRAINING LIMITED",10003093]
[null,null,null,null,null,null,"HILLS ROAD SIXTH FORM COLLEGE",10003094]
[null,null,null,null,null,null,"HIT TRAINING LTD",10012467]
[null,null,null,null,null,null,"HOB SALONS LIMITED ",10044778]
[null,null,null,null,null,null,"HOME GROUP LIMITED",10021303]
[null,null,null,null,null,null,"HONDA MOTOR EUROPE LIMITED",10011941]
[null,null,null,null,null,null,"HOOPLE LTD",10036333]
[null,null,null,null,null,null,"HOPWOOD HALL COLLEGE",10003146]
[null,null,null,null,null,null,"HOSPITALITY TRAINING PARTNERSHIP (IOW) LIMITED",10003162]
[null,null,null,null,null,null,"HOUNSLOW LONDON BOROUGH COUNCIL",10003165]
[null,null,null,null,null,null,"HOUSE OF CLIVE (HAIR AND BEAUTY) LIMITED",10005426]
[null,null,null,null,null,null,"HOUSING & CARE 21",10029358]
[null,null,null,null,null,null,"HSBC BANK PLC",10011240]
[null,null,null,null,null,null,"HUDDERSFIELD TEXTILE TRAINING LIMITED",10003190]
[null,null,null,null,null,null,"HUDSON & HUGHES TRAINING LIMITED",10003192]
[null,null,null,null,null,null,"HUGH BAIRD COLLEGE",10003193]
[null,null,null,null,null,null,"HULL AND EAST YORKSHIRE COMMUNITY FOUNDATION",10003199]
[null,null,null,null,null,null,"HULL BUSINESS TRAINING CENTRE LIMITED",10003197]
[null,null,null,null,null,null,"HULL COLLEGE",10003200]
[null,null,null,null,null,null,"HUMBER LEARNING CONSORTIUM",10003207]
[null,null,null,null,null,null,"HUMBERSIDE ENGINEERING TRAINING ASSOCIATION LIMITED",10003206]
[null,null,null,null,null,null,"HUNTINGDONSHIRE REGIONAL COLLEGE",10007949]
[null,null,null,null,null,null,"ICON VOCATIONAL TRAINING LIMITED",10003240]
[null,null,null,null,null,null,"IMPACT LEARNING & DATA SOLUTIONS LIMITED",10022627]
[null,null,null,null,null,null,"IN TOUCH CARE LIMITED",10003279]
[null,null,null,null,null,null,"IN-COMM TRAINING SERVICES LIMITED",10003281]
[null,null,null,null,null,null,"INDEPENDENT TRAINING SERVICES LIMITED",10003289]
[null,null,null,null,null,null,"INGEUS TRAINING LIMITED",10007755]
[null,null,null,null,null,null,"INSPIRE 2 INDEPENDENCE (I2I) LTD",10010940]
[null,null,null,null,null,null,"INSTITUTE OF SWIMMING LIMITED",10013106]
[null,null,null,null,null,null,"INTEC BUSINESS COLLEGES LIMITED",10003347]
[null,null,null,null,null,null,"INTER TRAINING SERVICES LIMITED",10003354]
[null,null,null,null,null,null,"INTERACTIVE DEVELOPMENT EDUCATION LIMITED",10013539]
[null,null,null,null,null,null,"INTROTRAIN (ACE) LIMITED",10034022]
[null,null,null,null,null,null,"INTUITIONS LIMITED",10003382]
[null,null,null,null,null,null,"IPS INTERNATIONAL LIMITED",10003385]
[null,null,null,null,null,null,"ISIS TRAINING SERVICES LIMITED",10003402]
[null,null,null,null,null,null,"ISLE OF WIGHT COLLEGE",10003406]
[null,null,null,null,null,null,"ISLE OF WIGHT COUNCIL",10003407]
[null,null,null,null,null,null,"ISLINGTON LONDON BOROUGH COUNCIL",10003414]
[null,null,null,null,null,null,"ISS UK LIMITED",10027719]
[null,null,null,null,null,null,"ITCHEN COLLEGE",10003427]
[null,null,null,null,null,null,"ITEC NORTH EAST LIMITED",10003430]
[null,null,null,null,null,null,"ITS TRAINING LTD",10036282]
[null,null,null,null,null,null,"IXION HOLDINGS (CONTRACTS) LIMITED",10033758]
[null,null,null,null,null,null,"J D WETHERSPOON PLC",10027031]
[null,null,null,null,null,null,"JAGUAR LAND ROVER HOLDINGS LIMITED",10009671]
[null,null,null,null,null,null,"JANARD TRAINING AND ASSESSMENT CENTRE LIMITED",10007951]
[null,null,null,null,null,null,"JANCETT CHILDCARE & JACE TRAINING LIMITED",10042190]
[null,null,null,null,null,null,"JARVIS TRAINING MANAGEMENT LIMITED",10003456]
[null,null,null,null,null,null,"JBC COMPUTER TRAINING LIMITED",10019314]
[null,null,null,null,null,null,"JFC  TRAINING COLLEGE LTD",10021254]
[null,null,null,null,null,null,"JGA LIMITED",10006710]
[null,null,null,null,null,null,"JOBWISE TRAINING LIMITED",10003478]
[null,null,null,null,null,null,"JOHN FRANK TRAINING LTD",10040271]
[null,null,null,null,null,null,"JOHN LAING TRAINING LIMITED",10003490]
[null,null,null,null,null,null,"JOHN LEGGOTT SIXTH FORM COLLEGE",10003491]
[null,null,null,null,null,null,"JOHN RUSKIN COLLEGE",10003500]
[null,null,null,null,null,null,"JOINT LEARNING PARTNERSHIP LIMITED",10003508]
[null,null,null,null,null,null,"JOSEPH CHAMBERLAIN SIXTH FORM COLLEGE",10003511]
[null,null,null,null,null,null,"JTL",10003526]
[null,null,null,null,null,null,"K & G HAIR LLP",10033723]
[null,null,null,null,null,null,"KAPLAN FINANCIAL LIMITED",10000446]
[null,null,null,null,null,null,"KATS LTD",10016742]
[null,null,null,null,null,null,"KEITS TRAINING SERVICES LTD",10003571]
[null,null,null,null,null,null,"KENDAL COLLEGE",10003558]
[null,null,null,null,null,null,"KENSINGTON AND CHELSEA COLLEGE",10003564]
[null,null,null,null,null,null,"KENT COUNTY COUNCIL",10003570]
[null,null,null,null,null,null,"KENTUCKY FRIED CHICKEN (GREAT BRITAIN) LIMITED",10030877]
[null,null,null,null,null,null,"KEY TRAINING LIMITED",10003593]
[null,null,null,null,null,null,"KING GEORGE V COLLEGE",10003640]
[null,null,null,null,null,null,"KINGSTON COLLEGE",10003674]
[null,null,null,null,null,null,"KINGSTON MAURWARD COLLEGE",10003676]
[null,null,null,null,null,null,"KINGSTON UNIVERSITY",10003678]
[null,null,null,null,null,null,"KINGSTON UPON HULL CITY COUNCIL",10003198]
[null,null,null,null,null,null,"KIRKDALE INDUSTRIAL TRAINING SERVICES LIMITED",10003688]
[null,null,null,null,null,null,"KIRKLEES COLLEGE",10003189]
[null,null,null,null,null,null,"KIRKLEES METROPOLITAN COUNCIL",10003692]
[null,null,null,null,null,null,"KNOWSLEY COMMUNITY COLLEGE",10003708]
[null,null,null,null,null,null,"KNOWSLEY METROPOLITAN BOROUGH COUNCIL",10003709]
[null,null,null,null,null,null,"KT ASSOCIATES",10013665]
[null,null,null,null,null,null,"KWIK-FIT (GB) LIMITED",10003724]
[null,null,null,null,null,null,"L.I.T.S. LIMITED",10003728]
[null,null,null,null,null,null,"LAGAT LIMITED",10003744]
[null,null,null,null,null,null,"LAKES COLLEGE WEST CUMBRIA",10003753]
[null,null,null,null,null,null,"LAMBETH COLLEGE",10003755]
[null,null,null,null,null,null,"LAMBETH LONDON BOROUGH COUNCIL",10003995]
[null,null,null,null,null,null,"LANCASHIRE COUNTY COUNCIL",10003765]
[null,null,null,null,null,null,"LANCASTER AND MORECAMBE COLLEGE",10003768]
[null,null,null,null,null,null,"LANCASTER TRAINING SERVICES LIMITED",10003771]
[null,null,null,null,null,null,"LAWN TENNIS ASSOCIATION LIMITED",10022654]
[null,null,null,null,null,null,"LD TRAINING SERVICES LTD",10027803]
[null,null,null,null,null,null,"LEAGUE FOOTBALL EDUCATION",10003808]
[null,null,null,null,null,null,"LEARNDIRECT LIMITED",10003816]
[null,null,null,null,null,null,"LEARNING CURVE (JAA) LIMITED",10008935]
[null,null,null,null,null,null,"LEARNING SKILLS PARTNERSHIP LTD",10032740]
[null,null,null,null,null,null,"LEEDS CITY COLLEGE",10024962]
[null,null,null,null,null,null,"LEEDS CITY COUNCIL",10003853]
[null,null,null,null,null,null,"LEEDS COLLEGE OF ART",10003854]
[null,null,null,null,null,null,"LEEDS COLLEGE OF BUILDING",10003855]
[null,null,null,null,null,null,"LEICESTER CITY COUNCIL",10003866]
[null,null,null,null,null,null,"LEICESTER COLLEGE",10003867]
[null,null,null,null,null,null,"LEICESTERSHIRE COUNTY COUNCIL",10003872]
[null,null,null,null,null,null,"LESLIE FRANCES (HAIR FASHIONS) LIMITED",10003889]
[null,null,null,null,null,null,"LESOCO",10003894]
[null,null,null,null,null,null,"LEWISHAM LONDON BOROUGH COUNCIL",10003895]
[null,null,null,null,null,null,"LEYTON SIXTH FORM COLLEGE",10003899]
[null,null,null,null,null,null,"LIFESKILLS SOLUTIONS LIMITED",10003909]
[null,null,null,null,null,null,"LIFETIME TRAINING GROUP LIMITED",10003915]
[null,null,null,null,null,null,"LIGA (UK) LTD",10034315]
[null,null,null,null,null,null,"LINCOLN COLLEGE",10003928]
[null,null,null,null,null,null,"LINCOLNSHIRE COUNTY COUNCIL",10003932]
[null,null,null,null,null,null,"LIONHEART IN THE COMMUNITY LIMITED",10032250]
[null,null,null,null,null,null,"LITE (STOCKPORT) LIMITED",10008354]
[null,null,null,null,null,null,"LIVERPOOL CHAMBER TRAINING LTD",10030252]
[null,null,null,null,null,null,"LIVERPOOL CITY COUNCIL",10003954]
[null,null,null,null,null,null,"LOCOMOTIVATION LTD.",10003976]
[null,null,null,null,null,null,"LONDON BOROUGH OF SUTTON (ORCHARD HILL COLLEGE)",10022998]
[null,null,null,null,null,null,"LONDON BOROUGH OF SUTTON (SCOLA)",10006444]
[null,null,null,null,null,null,"LONDON CACTUS LIMITED ",10031745]
[null,null,null,null,null,null,"LONDON ELECTRONICS COLLEGE LIMITED",10004032]
[null,null,null,null,null,null,"LONDON LEARNING CONSORTIUM COMMUNITY INTEREST COMPANY",10021684]
[null,null,null,null,null,null,"LONDON SKILLS & DEVELOPMENT NETWORK LIMITED",10022507]
[null,null,null,null,null,null,"LONDON VESTA COLLEGE LIMITED",10024404]
[null,null,null,null,null,null,"LONGLEY PARK SIXTH FORM COLLEGE",10008655]
[null,null,null,null,null,null,"LOOKFANTASTIC TRAINING LIMITED",10012477]
[null,null,null,null,null,null,"LOUGHBOROUGH COLLEGE",10004112]
[null,null,null,null,null,null,"LOUGHBOROUGH UNIVERSITY",10004113]
[null,null,null,null,null,null,"LOWESTOFT COLLEGE",10004116]
[null,null,null,null,null,null,"LUTON BOROUGH COUNCIL",10004124]
[null,null,null,null,null,null,"M I T SKILLS LIMITED",10004440]
[null,null,null,null,null,null,"MACCLESFIELD COLLEGE",10004144]
[null,null,null,null,null,null,"MAINSTREAM TRAINING LIMITED",10009491]
[null,null,null,null,null,null,"MANCHESTER CITY COUNCIL",10004175]
[null,null,null,null,null,null,"MANCHESTER COLLEGE, THE",10023139]
[null,null,null,null,null,null,"MANCHESTER METROPOLITAN UNIVERSITY",10004180]
[null,null,null,null,null,null,"MANTRA LEARNING LIMITED",10004181]
[null,null,null,null,null,null,"MARDELL ASSOCIATES LIMITED",10005926]
[null,null,null,null,null,null,"MARITIME + ENGINEERING COLLEGE NORTH WEST",10003748]
[null,null,null,null,null,null,"MARKET DRIVEN TRAINING LIMITED",10026001]
[null,null,null,null,null,null,"MARR CORPORATION LIMITED",10024124]
[null,null,null,null,null,null,"MARTINEX LIMITED",10000994]
[null,null,null,null,null,null,"MARY WARD SETTLEMENT",10007875]
[null,null,null,null,null,null,"MATRIX TRAINING AND DEVELOPMENT LIMITED",10004240]
[null,null,null,null,null,null,"MCARTHUR DEAN TRAINING LIMITED",10004257]
[null,null,null,null,null,null,"MCDONALD'S RESTAURANTS LIMITED",10013073]
[null,null,null,null,null,null,"MEADOWHALL TRAINING LIMITED ",10010905]
[null,null,null,null,null,null,"MEDI PROSPECTS LTD",10028909]
[null,null,null,null,null,null,"MEDWAY COUNCIL",10004285]
[null,null,null,null,null,null,"MERCEDES-BENZ UK LIMITED",10022856]
[null,null,null,null,null,null,"MERCIA PARTNERSHIP (UK) LTD",10004303]
[null,null,null,null,null,null,"MERTON BOROUGH COUNCIL",10003996]
[null,null,null,null,null,null,"METSKILL LIMITED",10004319]
[null,null,null,null,null,null,"MI COMPUTSOLUTIONS INCORPORATED",10018328]
[null,null,null,null,null,null,"MIC SKILLS & EMPLOYABILITY LTD",10011242]
[null,null,null,null,null,null,"MICHAEL JOHN HEATH",10014196]
[null,null,null,null,null,null,"MICHAEL JOHN TRAINING LIMITED",10007002]
[null,null,null,null,null,null,"MICHAEL MCCORMACK",10012892]
[null,null,null,null,null,null,"MID-CHESHIRE COLLEGE",10004339]
[null,null,null,null,null,null,"MIDDLESBROUGH COLLEGE",10004344]
[null,null,null,null,null,null,"MIDDLESBROUGH COUNCIL",10004343]
[null,null,null,null,null,null,"MID-KENT COLLEGE",10004340]
[null,null,null,null,null,null,"MIDLAND GROUP TRAINING SERVICES LIMITED",10004355]
[null,null,null,null,null,null,"MILLBROOK MANAGEMENT SERVICES LIMITED",10005264]
[null,null,null,null,null,null,"MILLENNIUM ACADEMY LTD",10027518]
[null,null,null,null,null,null,"MILTON KEYNES COLLEGE",10004375]
[null,null,null,null,null,null,"MILTON KEYNES COUNCIL",10004376]
[null,null,null,null,null,null,"MITIE GROUP PLC",10023999]
[null,null,null,null,null,null,"MOBILE CARE QUALIFICATIONS LIMITED",10004404]
[null,null,null,null,null,null,"MOMENTUM TRAINING AND CONSULTANCY LTD ",10044729]
[null,null,null,null,null,null,"MORLEY COLLEGE LIMITED",10004432]
[null,null,null,null,null,null,"MOULTON COLLEGE",10004442]
[null,null,null,null,null,null,"MPOWER TRAINING SOLUTIONS LTD",10023896]
[null,null,null,null,null,null,"MYERSCOUGH COLLEGE",10004478]
[null,null,null,null,null,null,"NACRO",10004486]
[null,null,null,null,null,null,"NATIONAL BUSINESS COLLEGE LIMITED",10004499]
[null,null,null,null,null,null,"NATIONAL GRID PLC",10004512]
[null,null,null,null,null,null,"NATIONAL TYRE SERVICE LIMITED",10004530]
[null,null,null,null,null,null,"NCG",10004599]
[null,null,null,null,null,null,"NELSON AND COLNE COLLEGE",10004552]
[null,null,null,null,null,null,"NESTOR PRIMECARE SERVICES LIMITED",10026072]
[null,null,null,null,null,null,"NETA TRAINING TRUST",10004558]
[null,null,null,null,null,null,"NETWORK RAIL INFRASTRUCTURE LIMITED",10013544]
[null,null,null,null,null,null,"NEW COLLEGE DURHAM",10004576]
[null,null,null,null,null,null,"NEW COLLEGE NOTTINGHAM (NCN)",10004577]
[null,null,null,null,null,null,"NEW COLLEGE STAMFORD",10006303]
[null,null,null,null,null,null,"NEW COLLEGE SWINDON",10004579]
[null,null,null,null,null,null,"NEW COLLEGE TELFORD",10004580]
[null,null,null,null,null,null,"NEWBURY COLLEGE",10004596]
[null,null,null,null,null,null,"NEWCASTLE UPON TYNE CITY COUNCIL",10004601]
[null,null,null,null,null,null,"NEWCASTLE-UNDER-LYME COLLEGE (NULC)",10004603]
[null,null,null,null,null,null,"NEWHAM COLLEGE OF FURTHER EDUCATION",10004607]
[null,null,null,null,null,null,"NEWHAM LONDON BOROUGH COUNCIL",10003997]
[null,null,null,null,null,null,"NEWHAM SIXTH FORM COLLEGE",10004608]
[null,null,null,null,null,null,"NEXT GROUP PLC",10040519]
[null,null,null,null,null,null,"NHTA LIMITED",10004632]
[null,null,null,null,null,null,"NLT TRAINING SERVICES LIMITED",10004645]
[null,null,null,null,null,null,"NORFOLK COUNTY COUNCIL",10004657]
[null,null,null,null,null,null,"NORFOLK TRAINING SERVICES LIMITED",10004663]
[null,null,null,null,null,null,"NORTH EAST CHAMBER OF COMMERCE, TRADE AND INDUSTRY",10004542]
[null,null,null,null,null,null,"NORTH EAST EMPLOYMENT & TRAINING AGENCY LTD",10004547]
[null,null,null,null,null,null,"NORTH EAST LINCOLNSHIRE COUNCIL",10004684]
[null,null,null,null,null,null,"NORTH EAST SURREY COLLEGE OF TECHNOLOGY (NESCOT)",10004686]
[null,null,null,null,null,null,"NORTH HERTFORDSHIRE COLLEGE",10004690]
[null,null,null,null,null,null,"NORTH LANCS. TRAINING GROUP LIMITED(THE)",10004692]
[null,null,null,null,null,null,"NORTH LINCOLNSHIRE COUNCIL",10004694]
[null,null,null,null,null,null,"NORTH LINDSEY COLLEGE",10004695]
[null,null,null,null,null,null,"NORTH LIVERPOOL REGENERATION COMPANY LTD",10020981]
[null,null,null,null,null,null,"NORTH NOTTINGHAMSHIRE COLLEGE",10004705]
[null,null,null,null,null,null,"NORTH TYNESIDE METROPOLITAN BOROUGH COUNCIL",10004714]
[null,null,null,null,null,null,"NORTH WARWICKSHIRE AND HINCKLEY COLLEGE",10004718]
[null,null,null,null,null,null,"NORTH WEST COMMUNITY SERVICES TRAINING LTD",10004720]
[null,null,null,null,null,null,"NORTH WEST KENT COLLEGE",10004721]
[null,null,null,null,null,null,"NORTH WEST TRAINING COUNCIL",10004723]
[null,null,null,null,null,null,"NORTH YORKSHIRE COUNTY COUNCIL",10004727]
[null,null,null,null,null,null,"NORTHAMPTON COLLEGE",10007011]
[null,null,null,null,null,null,"NORTHAMPTONSHIRE COUNTY COUNCIL",10004733]
[null,null,null,null,null,null,"NORTHAMPTONSHIRE INDUSTRIAL TRAINING ASSOCIATION LIMITED",10004643]
[null,null,null,null,null,null,"NORTHBROOK COLLEGE SUSSEX",10004736]
[null,null,null,null,null,null,"NORTHERN CARE TRAINING LIMITED",10013515]
[null,null,null,null,null,null,"NORTHERN COLLEGE FOR RESIDENTIAL ADULT EDUCATION LIMITED(THE)",10004739]
[null,null,null,null,null,null,"NORTHERN RACING COLLEGE",10004748]
[null,null,null,null,null,null,"NORTHERN SCHOOL OF CONTEMPORARY DANCE",10008816]
[null,null,null,null,null,null,"NORTHUMBERLAND COLLEGE",10004760]
[null,null,null,null,null,null,"NORTON RADSTOCK COLLEGE",10004771]
[null,null,null,null,null,null,"NOTTINGHAM CITY COUNCIL",10004791]
[null,null,null,null,null,null,"NOTTINGHAM TRENT UNIVERSITY",10004797]
[null,null,null,null,null,null,"NOTTINGHAMSHIRE COUNTY COUNCIL",10004801]
[null,null,null,null,null,null,"NOTTINGHAMSHIRE TRAINING NETWORK",10004807]
[null,null,null,null,null,null,"NOVA RECRUITMENT SERVICES LIMITED",10004813]
[null,null,null,null,null,null,"NUNEATON TRAINING CENTRE LIMITED",10004819]
[null,null,null,null,null,null,"OAKLANDS COLLEGE OF FURTHER EDUCATION",10004835]
[null,null,null,null,null,null,"OLDHAM ENGINEERING GROUP TRAINING ASSOCIATION LIMITED (THE)",10004856]
[null,null,null,null,null,null,"OLDHAM METROPOLITAN BOROUGH COUNCIL",10004858]
[null,null,null,null,null,null,"OMEGA TRAINING SERVICES LIMITED",10004866]
[null,null,null,null,null,null,"OPEN DOOR ADULT LEARNING CENTRE",10030688]
[null,null,null,null,null,null,"OPPORTUNITIES WORKSHOP LIMITED",10037916]
[null,null,null,null,null,null,"OPTIONS 2 WORKPLACE LEARNING LTD",10010572]
[null,null,null,null,null,null,"ORACLE TRAINING CONSULTANTS LIMITED",10004895]
[null,null,null,null,null,null,"OUTSOURCE VOCATIONAL LEARNING LIMITED",10022439]
[null,null,null,null,null,null,"OXFORD BROOKES UNIVERSITY",10004930]
[null,null,null,null,null,null,"OXFORDSHIRE COUNTY COUNCIL",10004926]
[null,null,null,null,null,null,"P.T.P. TRAINING LIMITED",10011880]
[null,null,null,null,null,null,"PALMER'S COLLEGE",10004969]
[null,null,null,null,null,null,"PARAGON EDUCATION & SKILLS LIMITED",10004977]
[null,null,null,null,null,null,"PARTNERSHIP DEVELOPMENT SOLUTIONS LTD",10027893]
[null,null,null,null,null,null,"PATHWAY FIRST LIMITED",10021793]
[null,null,null,null,null,null,"PDM TRAINING & CONSULTANCY LIMITED",10005017]
[null,null,null,null,null,null,"PEARSON PLC",10011881]
[null,null,null,null,null,null,"PEOPLE AND BUSINESS DEVELOPMENT LTD",10020395]
[null,null,null,null,null,null,"PERA TRAINING LIMITED",10038913]
[null,null,null,null,null,null,"PERTEMPS PEOPLE DEVELOPMENT GROUP LIMITED",10019155]
[null,null,null,null,null,null,"PETA LIMITED",10005064]
[null,null,null,null,null,null,"PETER SYMONDS COLLEGE",10005072]
[null,null,null,null,null,null,"PETERBOROUGH CITY COUNCIL",10005074]
[null,null,null,null,null,null,"PETERBOROUGH REGIONAL COLLEGE",10005077]
[null,null,null,null,null,null,"PETROC",10004676]
[null,null,null,null,null,null,"PGL TRAINING (PLUMBING) LIMITED",10008426]
[null,null,null,null,null,null,"PHILIPS HAIR SALONS LIMITED",10005089]
[null,null,null,null,null,null,"PHONES 4U LIMITED",10022288]
[null,null,null,null,null,null,"PILOT IMS LIMITED",10005101]
[null,null,null,null,null,null,"PIZZA HUT",10043575]
[null,null,null,null,null,null,"PLUMPTON COLLEGE",10005124]
[null,null,null,null,null,null,"PLYMOUTH CITY COUNCIL",10005126]
[null,null,null,null,null,null,"PLYMOUTH COLLEGE OF ART",10005127]
[null,null,null,null,null,null,"POOLE BOROUGH COUNCIL",10005143]
[null,null,null,null,null,null,"PORTSLADE ALDRIDGE COMMUNITY ACADEMY",10034944]
[null,null,null,null,null,null,"PORTSMOUTH CITY COUNCIL",10005157]
[null,null,null,null,null,null,"PORTSMOUTH COLLEGE",10005158]
[null,null,null,null,null,null,"POSITIVE OUTCOMES LTD",10005166]
[null,null,null,null,null,null,"POULTEC TRAINING LIMITED",10005172]
[null,null,null,null,null,null,"PRE-SCHOOL LEARNING ALLIANCE",10000239]
[null,null,null,null,null,null,"PRESTON COLLEGE",10005200]
[null,null,null,null,null,null,"PRET A MANGER (EUROPE) LIMITED",10042197]
[null,null,null,null,null,null,"PREVISTA LTD",10005204]
[null,null,null,null,null,null,"PRIESTLEY COLLEGE",10005206]
[null,null,null,null,null,null,"PRIOR PURSGLOVE COLLEGE",10005220]
[null,null,null,null,null,null,"PRIORY CENTRAL SERVICES LIMITED",10034058]
[null,null,null,null,null,null,"PROCO NW LIMITED",10021842]
[null,null,null,null,null,null,"PROFESSIONAL BUSINESS & TRAINING SOLUTIONS LIMITED",10005237]
[null,null,null,null,null,null,"PROFESSIONAL TRAINING SOLUTIONS LIMITED",10021391]
[null,null,null,null,null,null,"PROFOUND SERVICES LIMITED",10022358]
[null,null,null,null,null,null,"PROGRESS TO EXCELLENCE LTD",10004823]
[null,null,null,null,null,null,"PROJECT MANAGEMENT (STAFFORDSHIRE) LIMITED",10005250]
[null,null,null,null,null,null,"PROSPECT TRAINING SERVICES (GLOUCESTER) LIMITED",10005261]
[null,null,null,null,null,null,"PROSPECTS COLLEGE OF ADVANCED TECHNOLOGY ",10046354]
[null,null,null,null,null,null,"PROSPECTS LEARNING FOUNDATION LIMITED",10005750]
[null,null,null,null,null,null,"PROSPECTS SERVICES",10005262]
[null,null,null,null,null,null,"PROSPECTS TRAINING INTERNATIONAL LIMITED",10027935]
[null,null,null,null,null,null,"PROVQ LIMITED",10022503]
[null,null,null,null,null,null,"PURSUIT TRAINING LIMITED",10030340]
[null,null,null,null,null,null,"QA LIMITED",10003375]
[null,null,null,null,null,null,"QDOS TRAINING LIMITED",10021018]
[null,null,null,null,null,null,"QINETIQ LIMITED",10002264]
[null,null,null,null,null,null,"QUBE QUALIFICATIONS AND DEVELOPMENT LIMITED",10005319]
[null,null,null,null,null,null,"QUEEN ELIZABETH SIXTH FORM COLLEGE",10005325]
[null,null,null,null,null,null,"QUEEN MARY'S COLLEGE",10005339]
[null,null,null,null,null,null,"RATHBONE TRAINING",10036345]
[null,null,null,null,null,null,"RAVENSBOURNE",10005389]
[null,null,null,null,null,null,"RAYTHEON SYSTEMS LIMITED",10024704]
[null,null,null,null,null,null,"READING BOROUGH COUNCIL",10005398]
[null,null,null,null,null,null,"REASEHEATH COLLEGE",10005404]
[null,null,null,null,null,null,"REDBRIDGE COLLEGE",10005410]
[null,null,null,null,null,null,"REDBRIDGE LONDON BOROUGH COUNCIL",10005412]
[null,null,null,null,null,null,"REDCAR & CLEVELAND COLLEGE",10005414]
[null,null,null,null,null,null,"REDCAR AND CLEVELAND BOROUGH COUNCIL",10005413]
[null,null,null,null,null,null,"REDWOOD EDUCATION AND SKILLS LIMITED",10031984]
[null,null,null,null,null,null,"REED IN PARTNERSHIP LIMITED",10021172]
[null,null,null,null,null,null,"REGENT COLLEGE",10005429]
[null,null,null,null,null,null,"RELEASE POTENTIAL LTD",10025330]
[null,null,null,null,null,null,"RESOURCES (N E) LIMITED",10024686]
[null,null,null,null,null,null,"RETAIL MOTOR INDUSTRY TRAINING LIMITED",10023047]
[null,null,null,null,null,null,"REWARDS TRAINING RECRUITMENT CONSULTANCY LIMITED",10005457]
[null,null,null,null,null,null,"RICHARD HUISH COLLEGE",10005465]
[null,null,null,null,null,null,"RICHARD TAUNTON SIXTH FORM COLLEGE",10009554]
[null,null,null,null,null,null,"RICHMOND ADULT COMMUNITY COLLEGE (RACC)",10005466]
[null,null,null,null,null,null,"RICHMOND UPON THAMES BOROUGH COUNCIL",10007362]
[null,null,null,null,null,null,"RICHMOND UPON THAMES COLLEGE",10005469]
[null,null,null,null,null,null,"RIVERSIDE COLLEGE",10002863]
[null,null,null,null,null,null,"RIVERSIDE TRAINING LIMITED",10005488]
[null,null,null,null,null,null,"ROCHDALE TRAINING ASSOCIATION LIMITED",10005509]
[null,null,null,null,null,null,"ROCKET TRAINING LIMITED",10005514]
[null,null,null,null,null,null,"ROLLS-ROYCE PLC",10005520]
[null,null,null,null,null,null,"ROLLS-ROYCE POWER ENGINEERING PLC",10013082]
[null,null,null,null,null,null,"ROTHERHAM BOROUGH COUNCIL",10005535]
[null,null,null,null,null,null,"ROTHERHAM COLLEGE OF ARTS AND TECHNOLOGY",10005534]
[null,null,null,null,null,null,"ROYAL AIR FORCE",10033441]
[null,null,null,null,null,null,"ROYAL BOROUGH OF GREENWICH",10003990]
[null,null,null,null,null,null,"ROYAL BOROUGH OF KENSINGTON AND CHELSEA COUNCIL",10005548]
[null,null,null,null,null,null,"ROYAL BOROUGH OF KINGSTON UPON THAMES COUNCIL",10005549]
[null,null,null,null,null,null,"ROYAL NAVY",10033438]
[null,null,null,null,null,null,"RUNSHAW COLLEGE",10005575]
[null,null,null,null,null,null,"RUSKIN COLLEGE",10005583]
[null,null,null,null,null,null,"RUTLAND COUNTY COUNCIL",10005586]
[null,null,null,null,null,null,"RWP TRAINING LIMITED",10005588]
[null,null,null,null,null,null,"S & B AUTOMOTIVE ACADEMY LIMITED",10005599]
[null,null,null,null,null,null,"S.W. DURHAM TRAINING LIMITED",10006005]
[null,null,null,null,null,null,"SAKS (EDUCATION) LIMITED",10005642]
[null,null,null,null,null,null,"SALFORD AND TRAFFORD ENGINEERING GROUP TRAINING ASSOCIATION LIMITED",10006317]
[null,null,null,null,null,null,"SALFORD CITY COLLEGE",10005032]
[null,null,null,null,null,null,"SANDWELL COLLEGE",10005669]
[null,null,null,null,null,null,"SANDWELL METROPOLITAN BOROUGH COUNCIL",10005671]
[null,null,null,null,null,null,"SANDWELL TRAINING ASSOCIATION LIMITED",10005673]
[null,null,null,null,null,null,"SBC TRAINING LIMITED",10033746]
[null,null,null,null,null,null,"SCARBOROUGH SIXTH FORM COLLEGE",10005687]
[null,null,null,null,null,null,"SEETEC BUSINESS TECHNOLOGY CENTRE LIMITED",10005735]
[null,null,null,null,null,null,"SEEVIC COLLEGE",10005736]
[null,null,null,null,null,null,"SEFTON METROPOLITAN BOROUGH COUNCIL",10005738]
[null,null,null,null,null,null,"SELBY COLLEGE",10005741]
[null,null,null,null,null,null,"SELECT SERVICE PARTNER UK LIMITED",10030520]
[null,null,null,null,null,null,"SELETA TRAINING AND PERSONNEL SERVICES LIMITED",10005744]
[null,null,null,null,null,null,"SERCO LIMITED",10005752]
[null,null,null,null,null,null,"SHAW TRUST LIMITED(THE)",10005782]
[null,null,null,null,null,null,"SHEFFIELD CITY COUNCIL",10002244]
[null,null,null,null,null,null,"SHEFFIELD COLLEGE, THE",10005788]
[null,null,null,null,null,null,"SHIPLEY COLLEGE",10005810]
[null,null,null,null,null,null,"SHREWSBURY COLLEGE OF ARTS & TECHNOLOGY",10005821]
[null,null,null,null,null,null,"SIEMENS PUBLIC LIMITED COMPANY",10013362]
[null,null,null,null,null,null,"SIMPLY ONE STOP LIMITED",10028965]
[null,null,null,null,null,null,"SIR JOHN DEANE'S COLLEGE",10005864]
[null,null,null,null,null,null,"SKILLNET LIMITED",10005891]
[null,null,null,null,null,null,"SKILLS FOR COMMUNITIES",10019541]
[null,null,null,null,null,null,"SKILLS FOR HEALTH LIMITED",10038112]
[null,null,null,null,null,null,"SKILLS FOR SECURITY LIMITED",10010523]
[null,null,null,null,null,null,"SKILLS NORTH EAST LIMITED",10028094]
[null,null,null,null,null,null,"SKILLS TEAM LTD",10012834]
[null,null,null,null,null,null,"SKILLS TO GROUP LIMITED",10005277]
[null,null,null,null,null,null,"SKILLS TRAINING UK LIMITED",10005897]
[null,null,null,null,null,null,"SKILLS UK LTD",10020256]
[null,null,null,null,null,null,"SLOUGH BOROUGH COUNCIL",10005916]
[null,null,null,null,null,null,"SMART TRAINING AND RECRUITMENT LIMITED",10005927]
[null,null,null,null,null,null,"SOCIAL ENTERPRISE KENT CIC",10028742]
[null,null,null,null,null,null,"SOFTMIST LIMITED",10022237]
[null,null,null,null,null,null,"SOLIHULL COLLEGE",10005946]
[null,null,null,null,null,null,"SOMERSET COLLEGE",10005956]
[null,null,null,null,null,null,"SOMERSET COUNTY COUNCIL",10005959]
[null,null,null,null,null,null,"SOUTH & CITY COLLEGE BIRMINGHAM",10005967]
[null,null,null,null,null,null,"SOUTH CHESHIRE COLLEGE",10005972]
[null,null,null,null,null,null,"SOUTH DEVON COLLEGE",10005977]
[null,null,null,null,null,null,"SOUTH DOWNS COLLEGE",10005979]
[null,null,null,null,null,null,"SOUTH ESSEX COLLEGE OF FURTHER AND HIGHER EDUCATION",10005981]
[null,null,null,null,null,null,"SOUTH GLOUCESTERSHIRE AND STROUD COLLEGE",10036143]
[null,null,null,null,null,null,"SOUTH LEICESTERSHIRE COLLEGE",10005989]
[null,null,null,null,null,null,"SOUTH STAFFORDSHIRE COLLEGE",10023526]
[null,null,null,null,null,null,"SOUTH THAMES COLLEGE",10005997]
[null,null,null,null,null,null,"SOUTH TYNESIDE COLLEGE",10005999]
[null,null,null,null,null,null,"SOUTH TYNESIDE COUNCIL",10006000]
[null,null,null,null,null,null,"SOUTH WEST ASSOCIATION OF TRAINING PROVIDERS LIMITED",10032119]
[null,null,null,null,null,null,"SOUTH WEST REGIONAL ASSESSMENT CENTRE LIMITED",10007872]
[null,null,null,null,null,null,"SOUTH WORCESTERSHIRE COLLEGE",10002356]
[null,null,null,null,null,null,"SOUTHAMPTON CITY COLLEGE",10006020]
[null,null,null,null,null,null,"SOUTHAMPTON CITY COUNCIL",10006021]
[null,null,null,null,null,null,"SOUTHAMPTON ENGINEERING TRAINING ASSOCIATION LIMITED (THE)",10005760]
[null,null,null,null,null,null,"SOUTHAMPTON SOLENT UNIVERSITY",10006022]
[null,null,null,null,null,null,"SOUTHEND-ON-SEA BOROUGH COUNCIL",10006029]
[null,null,null,null,null,null,"SOUTHPORT COLLEGE",10006038]
[null,null,null,null,null,null,"SOUTHWARK LONDON BOROUGH COUNCIL",10006042]
[null,null,null,null,null,null,"SPAN TRAINING & DEVELOPMENT LIMITED",10009091]
[null,null,null,null,null,null,"SPARSHOLT COLLEGE",10006050]
[null,null,null,null,null,null,"SPECIALIST TRADE COURSES LIMITED",10032147]
[null,null,null,null,null,null,"SPIRIT PUB COMPANY (SERVICES) LIMITED",10034192]
[null,null,null,null,null,null,"SPRINGBOARD SUNDERLAND TRUST",10006086]
[null,null,null,null,null,null,"SPRINGFIELD EDUCATION AND TRAINING LIMITED",10032390]
[null,null,null,null,null,null,"SPRINGFIELDS FUELS LIMITED",10010548]
[null,null,null,null,null,null,"SQUARE ORANGE ASSOCIATES LTD",10039112]
[null,null,null,null,null,null,"SSE SERVICES PLC",10023368]
[null,null,null,null,null,null,"ST CHARLES CATHOLIC SIXTH FORM COLLEGE",10006135]
[null,null,null,null,null,null,"ST HELENS CHAMBER LIMITED",10006173]
[null,null,null,null,null,null,"ST HELENS COLLEGE",10006174]
[null,null,null,null,null,null,"ST HELENS METROPOLITAN BOROUGH COUNCIL",10006175]
[null,null,null,null,null,null,"ST MARY'S COLLEGE",10006226]
[null,null,null,null,null,null,"ST PAUL'S",10006245]
[null,null,null,null,null,null,"ST VINCENT COLLEGE",10006268]
[null,null,null,null,null,null,"STAFF SELECT LTD",10027272]
[null,null,null,null,null,null,"STAFFLINE RECRUITMENT LIMITED",10032018]
[null,null,null,null,null,null,"STAFFORD COLLEGE",10006293]
[null,null,null,null,null,null,"STAFFORDSHIRE COUNTY COUNCIL",10006296]
[null,null,null,null,null,null,"STAFFORDSHIRE UNIVERSITY","10006299 "]
[null,null,null,null,null,null,"STANMORE COLLEGE OF FURTHER EDUCATION CORPORATION",10009439]
[null,null,null,null,null,null,"START TRAINING LTD",10019839]
[null,null,null,null,null,null,"STARTING OFF (NORTHAMPTON) LIMITED",10027655]
[null,null,null,null,null,null,"STEADFAST TRAINING LTD",10018942]
[null,null,null,null,null,null,"STEPHENSON COLLEGE",10006322]
[null,null,null,null,null,null,"STEPS TO WORK (WALSALL) LTD",10006325]
[null,null,null,null,null,null,"STEVE WALKER ASSOCIATES (UK) LIMITED",10008530]
[null,null,null,null,null,null,"STOCKPORT COLLEGE",10006331]
[null,null,null,null,null,null,"STOCKPORT ENGINEERING TRAINING ASSOCIATION LIMITED(THE)",10006332]
[null,null,null,null,null,null,"STOCKPORT METROPOLITAN BOROUGH COUNCIL",10006335]
[null,null,null,null,null,null,"STOCKTON RIVERSIDE COLLEGE",10006341]
[null,null,null,null,null,null,"STOCKTON-ON-TEES BOROUGH COUNCIL",10006337]
[null,null,null,null,null,null,"STOKE ON TRENT COLLEGE",10006349]
[null,null,null,null,null,null,"STOKE-ON-TRENT UNITARY AUTHORITY",10001473]
[null,null,null,null,null,null,"STRAIGHT A TRAINING LIMITED",10006365]
[null,null,null,null,null,null,"STRATFORD-UPON-AVON COLLEGE",10006002]
[null,null,null,null,null,null,"STRODE COLLEGE",10006378]
[null,null,null,null,null,null,"STRODE'S COLLEGE",10006379]
[null,null,null,null,null,null,"STUBBING COURT TRAINING LIMITED",10006387]
[null,null,null,null,null,null,"SUCCEAD LIMITED",10033478]
[null,null,null,null,null,null,"SUFFOLK COUNTY COUNCIL",10006399]
[null,null,null,null,null,null,"SUFFOLK NEW COLLEGE",10006398]
[null,null,null,null,null,null,"SUMMERHOUSE EQUESTRIAN AND TRAINING CENTRE LLP",10043685]
[null,null,null,null,null,null,"SUNDERLAND CITY METROPOLITAN BOROUGH COUNCIL",10006407]
[null,null,null,null,null,null,"SUNDERLAND COLLEGE",10001475]
[null,null,null,null,null,null,"SUNDERLAND ENGINEERING TRAINING ASSOCIATION LIMITED",10006408]
[null,null,null,null,null,null,"SUPERDRUG STORES PLC",10020811]
[null,null,null,null,null,null,"SURREY COUNTY COUNCIL",10006426]
[null,null,null,null,null,null,"SUSSEX COAST COLLEGE HASTINGS",10002923]
[null,null,null,null,null,null,"SUSSEX DOWNS COLLEGE",10006432]
[null,null,null,null,null,null,"SWINDON COLLEGE",10006463]
[null,null,null,null,null,null,"SWINDON UNITARY AUTHORITY",10006462]
[null,null,null,null,null,null,"SYSCO BUSINESS SKILLS ACADEMY LIMITED",10013122]
[null,null,null,null,null,null,"SYSTEM GROUP LIMITED",10006472]
[null,null,null,null,null,null,"TALENT TRAINING (UK) LLP",10024071]
[null,null,null,null,null,null,"TAMESIDE COLLEGE",10006494]
[null,null,null,null,null,null,"TAMESIDE METROPOLITAN BOROUGH COUNCIL",10006495]
[null,null,null,null,null,null,"TARGETED TRAINING PROJECTS LIMITED",10006500]
[null,null,null,null,null,null,"TDLC LIMITED",10038077]
[null,null,null,null,null,null,"TDR TRAINING LIMITED",10006517]
[null,null,null,null,null,null,"TEAM ENTERPRISES LIMITED",10006519]
[null,null,null,null,null,null,"TEAM WEARSIDE LIMITED",10006521]
[null,null,null,null,null,null,"TELFORD AND WREKIN BOROUGH COUNCIL",10006547]
[null,null,null,null,null,null,"TELFORD COLLEGE OF ARTS & TECHNOLOGY",10006549]
[null,null,null,null,null,null,"TEMPLEGATE TRAINING",10023492]
[null,null,null,null,null,null,"TESCO STORES LIMITED",10006559]
[null,null,null,null,null,null,"THE ACADEMY HAIR & BEAUTY LTD",10006574]
[null,null,null,null,null,null,"THE APPRENTICE ACADEMY LIMITED",10036578]
[null,null,null,null,null,null,"THE APPRENTICE SCHOOL CHARITABLE TRUST",10000931]
[null,null,null,null,null,null,"THE BEAUTY ACADEMY LIMITED",10042149]
[null,null,null,null,null,null,"THE BROOKE HOUSE SIXTH FORM COLLEGE",10006813]
[null,null,null,null,null,null,"THE CADCENTRE (UK) LIMITED",10001080]
[null,null,null,null,null,null,"THE CARE LEARNING CENTRE (ISLE OF WIGHT) LIMITED",10006622]
[null,null,null,null,null,null,"THE CHILD CARE COMPANY (OLD WINDSOR) LIMITED",10022788]
[null,null,null,null,null,null,"THE CITY LITERARY INSTITUTE",10001463]
[null,null,null,null,null,null,"THE CITY OF LIVERPOOL COLLEGE",10003955]
[null,null,null,null,null,null,"THE COLLEGE OF ANIMAL WELFARE LIMITED",10001539]
[null,null,null,null,null,null,"THE COLLEGE OF RICHARD COLLYER IN HORSHAM",10001550]
[null,null,null,null,null,null,"THE COLLEGE OF WEST ANGLIA",10007916]
[null,null,null,null,null,null,"THE CORNWALL COUNCIL",10001695]
[null,null,null,null,null,null,"THE DERBYSHIRE NETWORK",10006651]
[null,null,null,null,null,null,"THE FOOTBALL ASSOCIATION PREMIER LEAGUE LIMITED",10002527]
[null,null,null,null,null,null,"THE HEADMASTERS PARTNERSHIP LIMITED",10009072]
[null,null,null,null,null,null,"THE HENLEY COLLEGE",10003011]
[null,null,null,null,null,null,"THE INTRAINING GROUP LIMITED",10022763]
[null,null,null,null,null,null,"THE JCB ACADEMY",10030656]
[null,null,null,null,null,null,"THE LEARNING CURVE (VOLUNTARY SECTOR DEVELOPMENT)",10006734]
[null,null,null,null,null,null,"THE LEARNING PARTNERSHIP - BEDFORDSHIRE AND LUTON LIMITED",10003840]
[null,null,null,null,null,null,"THE LEARNING PARTNERSHIP FOR CORNWALL AND THE ISLES OF SCILLY LIMITED",10006735]
[null,null,null,null,null,null,"THE LONDON COLLEGE OF BEAUTY THERAPY LIMITED",10004013]
[null,null,null,null,null,null,"THE MARINE SOCIETY COLLEGE OF THE SEA",10004204]
[null,null,null,null,null,null,"THE MOTOR INSURANCE REPAIR RESEARCH CENTRE",10006571]
[null,null,null,null,null,null,"THE NORTHUMBERLAND COUNCIL",10004762]
[null,null,null,null,null,null,"THE OLDHAM COLLEGE",10006770]
[null,null,null,null,null,null,"THE OXFORD SCHOOL OF DRAMA TRUST ",10043485]
[null,null,null,null,null,null,"THE REAL APPRENTICESHIP COMPANY LIMITED",10030670]
[null,null,null,null,null,null,"THE REYNOLDS GROUP LIMITED",10006797]
[null,null,null,null,null,null,"THE SHROPSHIRE COUNCIL",10005825]
[null,null,null,null,null,null,"THE SIXTH FORM COLLEGE, SOLIHULL",10006815]
[null,null,null,null,null,null,"THE SKILLS PARTNERSHIP LIMITED",10005894]
[null,null,null,null,null,null,"THE TEACHING & LEARNING GROUP",10037345]
[null,null,null,null,null,null,"THE TERRI BROOKE SCHOOL OF NAILS AND BEAUTY LTD",10036255]
[null,null,null,null,null,null,"THE TRAINING & RECRUITMENT PARTNERSHIP LIMITED",10006986]
[null,null,null,null,null,null,"THE TTE TECHNICAL TRAINING GROUP",10007070]
[null,null,null,null,null,null,"THE VIA PARTNERSHIP LIMITED",10020194]
[null,null,null,null,null,null,"THE VOCATIONAL COLLEGE LIMITED",10006847]
[null,null,null,null,null,null,"THE VOLUNTARY AND COMMUNITY SECTOR LEARNING AND SKILLS CONSORTIUM",10004788]
[null,null,null,null,null,null,"THE WILTSHIRE COUNCIL",10007528]
[null,null,null,null,null,null,"THELIGHTBULB LTD",10003919]
[null,null,null,null,null,null,"THOMAS COOK GROUP UK LIMITED",10032145]
[null,null,null,null,null,null,"THOMAS ROTHERHAM COLLEGE",10006892]
[null,null,null,null,null,null,"THURROCK UNITARY AUTHORITY",10006907]
[null,null,null,null,null,null,"TIR TRAINING SERVICES LTD",10020313]
[null,null,null,null,null,null,"TONI & GUY UK TRAINING LIMITED",10023415]
[null,null,null,null,null,null,"TOTAL PEOPLE LIMITED",10021755]
[null,null,null,null,null,null,"TOTTON COLLEGE",10006958]
[null,null,null,null,null,null,"TOWER HAMLETS COLLEGE",10006963]
[null,null,null,null,null,null,"TOWER HAMLETS LONDON BOROUGH COUNCIL",10006964]
[null,null,null,null,null,null,"TOYOTA(G.B.) PLC",10011165]
[null,null,null,null,null,null,"TQ WORKFORCE DEVELOPMENT LIMITED",10010939]
[null,null,null,null,null,null,"TRAFFORD COLLEGE",10005998]
[null,null,null,null,null,null,"TRAIN TOGETHER",10032052]
[null,null,null,null,null,null,"TRAIN'D UP RAILWAY RESOURCING LIMITED",10010672]
[null,null,null,null,null,null,"TRAINING 2000 LIMITED",10006987]
[null,null,null,null,null,null,"TRAINING DAYS CONSULTANCY LTD",10025964]
[null,null,null,null,null,null,"TRAINING EVENT SAFETY SOLUTIONS LTD",10031093]
[null,null,null,null,null,null,"TRAINING FUTURES (UK) LIMITED",10031408]
[null,null,null,null,null,null,"TRAINING PLUS (MERSEYSIDE) LIMITED",10007013]
[null,null,null,null,null,null,"TRAINING SERVICES 2000 LTD",10007015]
[null,null,null,null,null,null,"TRAINING STRATEGIES LTD.",10027873]
[null,null,null,null,null,null,"TRAINING SYNERGY LIMITED",10035270]
[null,null,null,null,null,null,"TRANS-PLANT TRAINING LIMITED",10021850]
[null,null,null,null,null,null,"TRANSWORLD PUBLICATIONS SERVICES LIMITED",10005268]
[null,null,null,null,null,null,"TRESHAM COLLEGE OF FURTHER AND HIGHER EDUCATION",10007035]
[null,null,null,null,null,null,"TRN (TRAIN) LTD.",10000082]
[null,null,null,null,null,null,"TRURO AND PENWITH COLLEGE",10007063]
[null,null,null,null,null,null,"TTE TRAINING LIMITED",10004589]
[null,null,null,null,null,null,"TUI UK LIMITED",10004123]
[null,null,null,null,null,null,"TYNE METROPOLITAN COLLEGE",10008569]
[null,null,null,null,null,null,"TYNE NORTH TRAINING LIMITED",10007100]
[null,null,null,null,null,null,"UCKFIELD COMMUNITY TECHNOLOGY COLLEGE",10007111]
[null,null,null,null,null,null,"UK TRAINING & DEVELOPMENT LIMITED",10007123]
[null,null,null,null,null,null,"UNIQUE TRAINING NORTH EAST LIMITED",10033129]
[null,null,null,null,null,null,"UNITED LEARNING TRUST",10037395]
[null,null,null,null,null,null,"UNITED UTILITIES PLC",10010909]
[null,null,null,null,null,null,"UNIVERSITY COLLEGE BIRMINGHAM",10000712]
[null,null,null,null,null,null,"UNIVERSITY FOR THE CREATIVE ARTS",10006427]
[null,null,null,null,null,null,"UNIVERSITY OF BOLTON",10006841]
[null,null,null,null,null,null,"UNIVERSITY OF DERBY",10007851]
[null,null,null,null,null,null,"UNIVERSITY OF DURHAM",10007143]
[null,null,null,null,null,null,"UNIVERSITY OF LINCOLN",10007151]
[null,null,null,null,null,null,"UNIVERSITY OF SHEFFIELD",10007157]
[null,null,null,null,null,null,"UNIVERSITY OF THE ARTS, LONDON",10007162]
[null,null,null,null,null,null,"UNIVERSITY OF WEST LONDON",10006566]
[null,null,null,null,null,null,"URBAN FUTURES LONDON LIMITED",10021021]
[null,null,null,null,null,null,"UXBRIDGE COLLEGE",10007193]
[null,null,null,null,null,null,"V LEARNING NET",10003841]
[null,null,null,null,null,null,"VARNDEAN COLLEGE",10007212]
[null,null,null,null,null,null,"VECTOR AEROSPACE INTERNATIONAL LIMITED",10024426]
[null,null,null,null,null,null,"VENTURE LEARNING LIMITED",10007218]
[null,null,null,null,null,null,"VEOLIA ENVIRONNEMENT DEVELOPMENT CENTRE LIMITED",10014199]
[null,null,null,null,null,null,"VIRGIN MEDIA LIMITED",10023925]
[null,null,null,null,null,null,"VIRTUAL COLLEGE LIMITED",10006845]
[null,null,null,null,null,null,"VISAGE SCHOOL OF BEAUTY THERAPY LIMITED",10007232]
[null,null,null,null,null,null,"VISION EXPRESS (UK) LIMITED",10042126]
[null,null,null,null,null,null,"VOCATIONAL TRAINING SERVICES CARE SECTOR LIMITED",10009450]
[null,null,null,null,null,null,"VODAFONE LIMITED",10032067]
[null,null,null,null,null,null,"VOYAGE GROUP LIMITED",10030462]
[null,null,null,null,null,null,"VQ SOLUTIONS LTD",10022405]
[null,null,null,null,null,null,"W S TRAINING LTD.",10007659]
[null,null,null,null,null,null,"WAKEFIELD CITY COUNCIL",10007291]
[null,null,null,null,null,null,"WAKEFIELD COLLEGE",10007289]
[null,null,null,null,null,null,"WALFORD & NORTH SHROPSHIRE COLLEGE",10007299]
[null,null,null,null,null,null,"WALSALL COLLEGE",10007315]
[null,null,null,null,null,null,"WALSALL METROPOLITAN BOROUGH COUNCIL",10007318]
[null,null,null,null,null,null,"WALTHAM FOREST CHAMBER OF COMMERCE TRAINING TRUST LIMITED",10007320]
[null,null,null,null,null,null,"WALTHAM FOREST COLLEGE",10007321]
[null,null,null,null,null,null,"WALTHAM FOREST LONDON BOROUGH COUNCIL",10007322]
[null,null,null,null,null,null,"WANDSWORTH LONDON BOROUGH COUNCIL",10004002]
[null,null,null,null,null,null,"WARRINGTON BOROUGH COUNCIL",10007336]
[null,null,null,null,null,null,"WARRINGTON COLLEGIATE",10007339]
[null,null,null,null,null,null,"WARWICKSHIRE COLLEGE",10007859]
[null,null,null,null,null,null,"WARWICKSHIRE COUNTY COUNCIL",10007348]
[null,null,null,null,null,null,"WAVERLEY BOROUGH COUNCIL",10008986]
[null,null,null,null,null,null,"WEBS TRAINING LIMITED",10007375]
[null,null,null,null,null,null,"WEIR TRAINING LIMITED",10007377]
[null,null,null,null,null,null,"WEST ANGLIA TRAINING ASSOCIATION LIMITED",10007396]
[null,null,null,null,null,null,"WEST BERKSHIRE COUNCIL",10007398]
[null,null,null,null,null,null,"WEST BERKSHIRE TRAINING CONSORTIUM",10007402]
[null,null,null,null,null,null,"WEST CHESHIRE COLLEGE",10007407]
[null,null,null,null,null,null,"WEST HERTS COLLEGE OF FURTHER EDUCATION",10007417]
[null,null,null,null,null,null,"WEST KENT AND ASHFORD COLLEGE",10007419]
[null,null,null,null,null,null,"WEST LONDON COLLEGE OF BUSINESS & MANAGEMENT SCIENCES",10023290]
[null,null,null,null,null,null,"WEST LONDON VOCATIONAL TRAINING COLLEGE LTD",10023130]
[null,null,null,null,null,null,"WEST NOTTINGHAMSHIRE COLLEGE",10007427]
[null,null,null,null,null,null,"WEST SUFFOLK COLLEGE",10007431]
[null,null,null,null,null,null,"WEST SUSSEX COUNTY COUNCIL",10007432]
[null,null,null,null,null,null,"WEST THAMES COLLEGE",10007434]
[null,null,null,null,null,null,"WEST YORKSHIRE LEARNING PROVIDERS LTD",10008591]
[null,null,null,null,null,null,"WESTMINSTER CITY COUNCIL",10001464]
[null,null,null,null,null,null,"WESTMINSTER KINGSWAY COLLEGE",10007455]
[null,null,null,null,null,null,"WESTON COLLEGE OF FURTHER AND HIGHER EDUCATION",10007459]
[null,null,null,null,null,null,"WESTWARD PATHFINDER",10003256]
[null,null,null,null,null,null,"WEYMOUTH COLLEGE",10007469]
[null,null,null,null,null,null,"WHITBREAD PLC",10008023]
[null,null,null,null,null,null,"WIGAN AND LEIGH COLLEGE",10007500]
[null,null,null,null,null,null,"WIGAN METROPOLITAN BOROUGH COUNCIL",10007502]
[null,null,null,null,null,null,"WILBERFORCE COLLEGE",10007503]
[null,null,null,null,null,null,"WILTSHIRE COLLEGE",10007527]
[null,null,null,null,null,null,"WILTSHIRE TRANSPORT TRAINING & DEVELOPMENT LIMITED",10008024]
[null,null,null,null,null,null,"WINCANTON GROUP LIMITED",10019780]
[null,null,null,null,null,null,"WINSTANLEY COLLEGE",10007546]
[null,null,null,null,null,null,"WIRRAL METROPOLITAN BOROUGH COUNCIL",10004327]
[null,null,null,null,null,null,"WIRRAL METROPOLITAN COLLEGE",10007553]
[null,null,null,null,null,null,"WOKING COLLEGE",10007566]
[null,null,null,null,null,null,"WOKINGHAM COUNCIL",10007567]
[null,null,null,null,null,null,"WOLVERHAMPTON CITY COUNCIL",10007576]
[null,null,null,null,null,null,"WOMEN'S TECHNOLOGY TRAINING LIMITED",10007594]
[null,null,null,null,null,null,"WOODSPEEN TRAINING LIMITED",10000028]
[null,null,null,null,null,null,"WORCESTER SIXTH FORM COLLEGE",10008025]
[null,null,null,null,null,null,"WORCESTERSHIRE COUNTY COUNCIL",10007623]
[null,null,null,null,null,null,"WORKERS' EDUCATIONAL ASSOCIATION",10007364]
[null,null,null,null,null,null,"WORKING MEN'S COLLEGE CORPORATION",10007636]
[null,null,null,null,null,null,"WORTHING COLLEGE",10007643]
[null,null,null,null,null,null,"WRITTLE COLLEGE",10007657]
[null,null,null,null,null,null,"WYGGESTON AND QUEEN ELIZABETH I COLLEGE",10007671]
[null,null,null,null,null,null,"WYKE SIXTH FORM COLLEGE",10007673]
[null,null,null,null,null,null,"XAVERIAN COLLEGE",10007682]
[null,null,null,null,null,null,"XTP INTERNATIONAL LIMITED",10005150]
[null,null,null,null,null,null,"YEOVIL COLLEGE",10007696]
[null,null,null,null,null,null,"YH TRAINING SERVICES LIMITED",10007697]
[null,null,null,null,null,null,"YMCA TRAINING",10007405]
[null,null,null,null,null,null,"YORK COLLEGE",10007709]
[null,null,null,null,null,null,"YORKSHIRE COLLEGE OF BEAUTY LIMITED",10008699]
[null,null,null,null,null,null,"YORKSHIRE TRAINING PARTNERSHIP LIMITED",10007722]
[null,null,null,null,null,null,"YOUNGSAVE COMPANY LIMITED",10004370]